{"text_format":"1","workbook":"xlsx","n_sheets":21,"sheets":["Instructivo","Información General","Información de Personal","Cuentas Para Operacion","Entrada y Salida de Dinero Gral","Entrada y Salida por Paises","Entrada de Dinero por País","Salida de Dinero por Pais","Entrada_ Canal de Fondos","Entrada_ Tipo de Cliente","Entrada por Nivel de Riesgo ","Salida_ Canal de Fondos","Salida_ Tipo de Cliente ","Salida por Nivel de Riesgo","Otros productos","Custodios","VALIDAR ARCHIVO","MATRIZ","RESUMEN DE MATRIZ ","Catalogo","Hoja1"],"not_rendered":{"charts":0,"images":7,"macros":1,"external_links":1,"defined_names":4,"comments":5,"pivot_tables":2},"unopened":[],"bounds":{"document_bytes":16777216,"sheet_cells":100000,"rows_first":2000,"rows_last":500,"rows_between":2000,"halvings":0,"cell_chars":16384,"cell_head_chars":4096},"cells_cut":0,"cells_raw":0,"read":"whole","date_system":"1900"}

{"sheet":"Instructivo","index":0,"n_rows":214,"n_cols":2,"rows_kept":214,"cut":false,"hidden":false,"merged":[]}
[null,"INSTRUCTIVO PARA EL LLENADO DE LA INFORMACIÓN \n                 OPERATIVA DEL SUJETO OBLIGADO"]
[null,2021]
[null,"Objetivo del documento:"]
[null,"Ser una guia que facilite el llenado del archivo."]
[null,"Usuarios del documento:"]
[null,"Organizaciones Autorreguladas, \nCasa de Valores, \nAdministradores de Inversión, \nAdministradores de Fondos de Pensiones,\nAdministradora  de Fondos de Cesantía, \nSociedades de Inversión, \nAsesores de Inversión, y \nProveedores de Servicios Administrativos."]
[null,"Información a reportar:"]
[null,"Los Sujetos Obligados reportarán la información de su operación que se solicita en cada hoja."]
[null,"Periodo a supervisar:"]
[null,"1ro de Julio  2020    a    31 de Diciembre 2020"]
[null,"Instrucciones Generales:"]
[null,"1.     El Sujeto Obligado que se trate debe declarar la información  solicitada correspondiente al periodo  a supervisar."]
[null,"2.     El sujeto obligado deberá asignar a un responsable que deberá recopilar, verificar y llenar el presente formulario, pudiendo ser el Oficial de Cumplimiento o Responsable de Cumplimiento."]
[null,"3.     El formato de este archivo no deberá ser modificado, ni se deberá agregar filas o columnas. Únicamente para las secciones \"Información General (Accionistas), “Información de personal\", \"Cuentas para Operación\", se podrán agregar filas adicionales si estas resultan insuficientes."]
[null,"4.     Las dudas sobre el siguiente cuestionario podrán consultarse en el siguiente correo electrónico: csmv@supervalores.gob.pa"]
[]
[]
[null,"HOJA: Información General:"]
[null,"1.     Identificación:  "]
[null,"La información relativa a los datos de identificación del Sujeto Obligado de que se trate. "]
[null,"2.     Ubicación: "]
[null,"La información sobre la ubicación física del Sujeto Obligado deberá corresponder a la matriz/oficinas centrales del Sujeto Obligado. "]
[null,"3.     Datos Generales: "]
[null,"La información sobre datos generales debe corresponder a la información válida al 31 de Diciembre  de 2020."]
[null,"4.     Encargado de llenar el formulario: "]
[null,"Datos de la persona encargada de llenar el formulario;  es responsabilidad del Responsable de Cumplimiento o Persona de Enlace del Sujeto Obligado llenar el formulario, con independencia de las áreas y personas involucradas en la preparación de la información necesaria para dar respuesta."]
[null,"5.     Estructura de Cumplimiento:"]
[null," Datos de las personas que conforman la estructura de cumplimiento."]
[null,"6.    Canales Para la Entrada y Salida de Fondos :"]
[null,"I)    Indicar si utilizan corresponsalía, e-trading, oficinas del sujeto obligado, banco, corredor de valores /analista,  medios electrónicos, otro canal, para la entrada o salida de fondos, contestando SI/NO, según el caso.\n\nII)  Guarde la información de la sección: Seleccione   \"GUARDAR\",  aparecerá un mensaje confirmando el correcto almacenamiento,  evitando la modificación de la información proporcionada.\n\nIII) Para corregir información ingresada incorrectamente, debe dar click en \"EDITAR\",  realice el cambio y posteriormente guarde la información como se indico en el punto anterior."]
[null,"7.     Otros productos  y servicios: "]
[null,"I) Se muestra una lista con otros productos o servicios que  el Sujeto Obligado puede ofrecer, conteste \"SI\" o \"NO\",  en  cada caso.\n\nII)  Guarde la información de la sección: Seleccione   \"GUARDAR\",  aparecerá un mensaje confirmando el correcto almacenamiento,  evitando la modificación de la información proporcionada.\n\nIII) Para corregir información ingresada incorrectamente, debe dar click en \"EDITAR\",  realice el cambio y posteriormente guarde la información como se indico en el punto anterior."]
[]
[null,"8.     Niveles de riesgo: "]
[null,"I) Indique el número de niveles de riesgo considerados por el Sujeto Obligado para la clasificación de riesgo el cual debe ser el mismo para clientes, entidad, fondeo por mencionar algunos, este campo, este  debe ser numérico. Por ejemplo, si el Sujeto Obligado clasifica a sus clientes con los niveles de riesgo: bajo, medio y alto, debe indicar el número 3 en donde 1 corresponde al nivel mas bajo, 2 a riesgo medio y 3 al riesgo mas alto."]
[null,"II)  Guarde la información de la sección: Seleccione   \"GUARDAR\",  aparecerá un mensaje confirmando el correcto almacenamiento,  evitando la modificación de la información proporcionada.\n\nIII) Para corregir información ingresada incorrectamente, debe dar click en \"EDITAR\",  realice el cambio y posteriormente guarde la información como se indico en el punto anterior."]
[]
[null,"9. Sistema Informático: "]
[null,"Proporcionar la información verídica sobre la herramienta de monitoreo y funcionamiento, como el número de alertas generadas."]
[null,"10.  Información  financiera:"]
[null," Volumen total transaccionado sobre entradas  y salidas  de dinero durante el periodo solicitado."]
[null,"11. Información de estructura: "]
[null,"Proporcionar  información relativa a los accionistas  que participan en el capital  del Sujeto Obligado conforme se le solicita, en este apartado puede agregar las filas que sean necesarias."]
[]
[null,"HOJA: Información del Personal:"]
[null,"1.     Debe reportarse a todo el personal que prestó sus servicios al Sujeto Obligado durante el periodo indicado; independientemente sí dejó de laborar en el transcurso del periodo indicado. Debe incluirse al personal bajo la modalidad denominada Outsourcing, en caso de existir."]
[null,"2.     Información solicitada: "]
[null,"I.      Nombre (s), apellido paterno, apellido materno: nombre completo sin abreviaturas de cada uno de los colaboradores reportados."]
[null,"II.     Cédula de identificación: puede ser número de la cédula de identidad o número de pasaporte,  indicando la fecha de expiración."]
[null,"III.    Nacionalidad: indicar la nacionalidad de cada colaborador, en caso de contar con doble nacionalidad se debe establecer la nacionalidad de mayor riesgo."]
[null,"IV.   Puesto: Nombre del puesto que desempeña según el organigrama del Sujeto Obligado."]
[null,"V.    Capacitación: En las columnas relativas a la capacitación, el Sujeto Obligado debe indicar si el personal recibió capacitación en materia de Prevención de Blanqueo de Capitales, Financiamiento al terrorismo y Financiamiento a la proliferación de armas de destrucción masiva, y si  el personal realizó una evaluación referente a dicha capacitación y si esta evaluación fue aprobada o reprobada, en su caso durante el periodo a supervisar."]
[null,"VI.   Estatus: Se indicará ACTIVO cuando el personal aún estuviera laborando para el Sujeto Obligado. Se indicará BAJA cuando el personal hubiera dejado de laborar durante el periodo a supervisar."]
[]
[null,"HOJA: Cuentas para operación:"]
[null,"1.     Debe registrar todas las cuentas que son utilizadas para operar, apoyar o complementar las operaciones diarias del sujeto obligado."]
[]
[null,"I.      Banco o Entidad del Sistema Financiero: Nombre o denominación del Banco o Entidad del Sistema Financiero con la cual tenga contratada la cuenta."]
[null,"II.     Fecha de Apertura: La fecha en la cual celebró el contrato de apertura de la cuenta con el Banco o Entidad del Sistema Financiero."]
[null,"III.    Tipo de Cuenta: El tipo de cuenta que contrató con el Banco o Entidad del Sistema Financiero, pudiendo ser cheques, inversión, concentradora, etc."]
[null,"IV.   Tipo de Moneda: El tipo de moneda con el cual fue contratada la cuenta con el Banco o Entidad del Sistema Financiero."]
[null,"V.    Uso de la Cuenta: El motivo para el cual utiliza la cuenta contratada: pago de impuestos, pago de nómina, pago de servicios, pago a proveedores, pago a otras casas de cambio por intercambio de divisas, pago de obligaciones financieras, etc."]
[null,"VI.   Nombre o denominación del titular de la cuenta: Señalar quien es el titular de la cuenta por lo que deberá manifestar alguna de las siguientes opciones:"]
[null,"a)     Cuenta a nombre del Sujeto Obligado (señalar la denominación del Sujeto Obligado)."]
[null,"b)    Cuenta a nombre del representante legal (señalar el nombre completo sin abreviaturas)."]
[null,"c)     Cuenta a nombre de alguno de los socios (señalar el nombre completo sin abreviaturas)."]
[null,"d)    Cuenta a nombre de alguno de los accionistas personas físicas (señalar el nombre completo sin abreviaturas). "]
[null,"e)     Cuenta a nombre de otra persona natural o jurídica no indicada en los incisos anteriores (señalar el nombre completo sin abreviaturas). "]
[null,"VII.  Número de cliente en la institución financiera: Se refiere al número identificador asignado por la institución financiera para la identificación plena del cliente."]
[null,"VIII. Número de cuenta en la institución financiera: Se refiere al número identificador de la cuenta asociada al número de cliente, el número es asignado por la institución financiera. "]
[]
[]
[null,"HOJA: Entrada y Salida  Dinero General"]
[null,"1.- Indicar el número  total de operaciones de clientes, monto total transaccionado (Valor Neto) de entradas y salidas de fondos"]
[null,"2.- Del total de entrada y salida de fondos, especificar el número de transacciones realizadas y monto total (Valor Neto),  realizadas por medio de cheques, transferencias bancarias y transferencias de valores."]
[null,"3.- Si el número de operaciones de clientes o monto transaccionado es cero, debe indicarlo con número \"0\", no se aceptan celdas vacías."]
[]
[null,"HOJA: Entrada y Salida Por Países"]
[null,"I) Indique  el número de países involucrados en el ingreso y salida de dinero por cada mes. (No se permiten celdas vacias, en caso de no tener operación con algún país lo correctos es 0)"]
[null,"II)  Guarde la información de la sección: Seleccione   \"GUARDAR\",  aparecerá un mensaje confirmando el correcto almacenamiento,  evitando la modificación de la información proporcionada.\n\nIII) Para corregir información ingresada incorrectamente, debe dar click en \"EDITAR\",  realice el cambio y posteriormente guarde la información como se indico en el punto anterior."]
[]
[]
[null,"HOJA: Entrada_ Canal de fondos"]
[null,"1.- Indicar el número de operaciones realizadas y el monto transaccional (Valor Neto), por cada canal de entrada de fondos, de acuerdo a lo declarado en la hoja general."]
[null,"Corresponsalía /Custodio\nE-Trading\nOficina del sujeto obligado\nBanco\nCorredor de Valores /Analista\nMedios Electrónicos\nOtro Canal"]
[null,"No se permiten celdas vacías, en caso de no presentar operación señalar con número."]
[]
[null,"HOJA: Entrada_ Tipo de Cliente"]
[null,"1.- Indicar en la tabla  de enero a septiembre por tipo de persona:   "]
[null,"Persona natural panameña"]
[null,"Persona natural extrajera"]
[null,"Persona natural panameña  expuesta políticamente"]
[null,"Persona natural extrajera expuesta políticamente"]
[null,"Persona natural (por cada clasificación:  casinos, agentes inmobiliarios, comerciantes de metales o piedras preciosas, abogados, notarios, otros profesionistas jurídicos independientes y contadores, otros proveedores de servicios societarios y fideicomisos, organizaciones sin fines de lucro,  fundaciones, "]
[null,"Persona natural de alto riesgo"]
[null,"Persona natural  con una clasificación diferente a las anteriores."]
[null,"El número de clientes y monto transaccionado por cada tipo de persona involucrada  en la entrada de dinero."]
[]
[]
[null,"HOJA: Entrada_ Nivel de Riesgo"]
[null,"1.- Indicar el número de clientes  y monto transaccionado (valor neto)  clasificados en cada nivel de riesgo declarado en la hoja general, y que ingresaron dinero, en el periodo que se indica."]
[null,"Recordar que los niveles de riesgo se definieron de forma numérica en la hoja \"Información General\" sección niveles de riesgo,  y de la misma forma se solicitara los niveles de riesgo en donde 1 corresponde al nivel de riesgo mas bajo, y el número total de niveles  hará referencia al nivel de Riesgo alto."]
[]
[null,"Ejemplo 1: Si se definieron  tres niveles de riesgo (3), se solicitara la información de la siguiente forma:"]
[]
[]
[]
[]
[null,"En donde el nivel de riesgo 1, corresponde al mas bajo,  nivel 2 a riesgo medio  y nivel 3 al riesgo mas alto."]
[]
[null,"Ejemplo 2: Se definieron cinco niveles de riesgo (5),  1 es Riesgo Bajo, 2 Riesgo Medio Bajo, 3 Riesgo Medio, 4 Riesgo Medio Alto,,  5 Riesgo Alto."]
[]
[]
[null,"HOJA: Entrada_ Dinero por País"]
[null,"1.- Mes: Si  indico en la hoja Entrada y Salida por Países, que en el mes de enero entro dinero de 3 países diferentes (Ver siguiente imagen)"]
[]
[]
[]
[]
[]
[]
[]
[null,"Entonces se solicitaran los tres países  involucrados para el ingreso de dinero,  observando en la plantilla tres espacios para enero."]
[null,"2.- País : Continuando con el ejemplo anterior se debe seleccionar de la lista desplegable los tres países que corresponden en el mes de enero."]
[]
[]
[]
[]
[]
[]
[]
[]
[null,"3.- Número de clientes:  Valor número de los clientes originarios de dicho país."]
[null,"4.- Monto Transaccionado: Valor tipo Moneda, de la cantidad total que fue transaccionado por dicho país."]
[null,"HOJA: Salida_ Canal de Fondos"]
[null,"1.- Indicar el número de operaciones realizadas y el monto transaccional (Valor Neto), por cada canal de salida de fondos, de acuerdo a lo declarado en la hoja general."]
[null,"Corresponsalía /Custodio\nE-Trading\nOficina del sujeto obligado\nBanco\nCorredor de Valores /Analista\nMedios Electrónicos\nOtro Canal"]
[]
[null,"HOJA: Salida_ Tipo de Cliente"]
[null,"1.- Indicar en la tabla  de enero a septiembre por tipo de persona:   "]
[null,"Persona natural panameña"]
[null,"Persona natural extrajera"]
[null,"Persona natural panameña  expuesta políticamente"]
[null,"Persona natural extrajera expuesta políticamente"]
[null,"Persona natural (por cada clasificación:  casinos, agentes inmobiliarios, comerciantes de metales o piedras preciosas, abogados, notarios, otros profesionistas jurídicos independientes y contadores, otros proveedores de servicios societarios y fideicomisos, organizaciones sin fines de lucro,  fundaciones, "]
[null,"Persona natural de alto riesgo"]
[null,"Persona natural  con una clasificación diferente a las anteriores."]
[null,"El número de clientes y monto transaccionado para la salida  de dinero."]
[]
[null,"HOJA: Salida_ Nivel de Riesgo"]
[null,"1.- Indicar el número de clientes  y monto transaccionado (valor neto)  clasificados en cada nivel de riesgo declarado en la hoja general para la salida de dinero,   en el periodo que se indica, en donde "]
[null,"Recordar que los niveles de riesgo se definieron de forma numérica en la hoja \"Información General\" sección niveles de riesgo,  y de la misma forma se solicitara los niveles de riesgo en donde 1 corresponde al nivel de riesgo mas bajo, y el número total de niveles  hará referencia al nivel de Riesgo alto."]
[]
[null,"Ejemplo 1: Si se definieron  tres niveles de riesgo (3), se solicitara la información de la siguiente forma:"]
[]
[]
[]
[]
[null,"En donde el nivel de riesgo 1, corresponde al mas bajo,  nivel 2 a riesgo medio  y nivel 3 al riesgo mas alto."]
[]
[null,"Ejemplo 2: Se definieron cinco niveles de riesgo (5),  1 es Riesgo Bajo, 2 Riesgo Medio Bajo, 3 Riesgo Medio, 4 Riesgo Medio Alto,,  5 Riesgo Alto."]
[]
[]
[null,"HOJA: Salida_ Dinero por País"]
[null,"1.- Mes: Si  indico en la hoja Entrada y Salida por Países, que en el mes de enero salió dinero  a dos  países diferentes (Ver siguiente imagen)"]
[]
[]
[]
[]
[]
[]
[]
[null,"Entonces se solicitaran los dos países para la salida  de dinero,  observando en la plantilla dos espacios para enero."]
[null,"2.- País : Continuando con el ejemplo anterior se debe seleccionar de la lista desplegable los dos países que corresponden en el mes de enero."]
[]
[]
[]
[]
[]
[null,"3.- Número de clientes:  Valor número de los clientes originarios de dicho país."]
[null,"4.- Monto Transaccionado: Valor tipo Moneda, de la cantidad total que fue transaccionado por dicho país."]
[]
[null,"HOJA: Otros Productos"]
[null,"1.- Indicar el número total de clientes, monto Total transaccionado para la entrada de fondos, monto total transaccionado  para la salida de fondos (Valor neto), por cada producto declarado en la hoja de información general:"]
[null,"Custodia\nFiducia\nTransferencias electrónicas a nivel nacional o internacional\nAdministración de cartera o portafolio de inversión\nEjecución de funciones inherentes a agencia  de pagos\nPréstamo de valores  y dinero\nCorresponsalía"]
[null,"Swap"]
[null,"Crédit Default Swap"]
[null,"Reportos"]
[null,"Foros"]
[null,"Renta de cajas de seguridad"]
[null,"Otros productos/servicios financieros"]
[]
[null,"HOJA: Custodios"]
[null,"1.- Indique el nombre de custodio, monto custodiado."]
[null,"2.- Responsa si pertenece a un grupo económico."]
[null,"3.- Especifique el nombre del grupo financiero económico."]
[]
[null,"Guarde  el archivo como se indico y entregue en la fecha establecida."]
[]
[null,"HOJA: Validar Archivo"]
[null,"1.- Pulse el botón  \"VALIDAR INFORMACIÓN\", para verificar que la información que ingreso es clara y auditable."]
[]
[]
[]
[null,"2.- Si aparece el siguiente mensaje :"]
[]
[]
[]
[]
[]
[null,"Significa que la información no es clara, congruente y auditable, por lo tanto se recomienda verificar la información y capturar correctamente la información faltante."]
[]
[]
[null,"Versión:6,  Actualización: 10/12/2020."]

{"sheet":"Información General","index":1,"n_rows":84,"n_cols":7,"rows_kept":84,"cut":false,"hidden":false,"merged":[[9,0,16,0],[15,3,16,5],[46,0,59,0],[62,0,65,0],[67,0,75,0],[0,0,0,2],[45,0,45,5],[17,0,17,5],[18,3,22,5],[27,0,27,5],[28,0,32,0],[28,3,32,5],[33,0,33,5],[34,0,36,0],[37,0,37,5],[38,0,44,0],[44,3,44,5],[18,0,26,0],[1,0,1,5],[2,0,7,0],[8,0,8,5],[89,3,89,4],[61,0,61,5],[62,1,64,1],[66,0,66,5],[76,0,76,5],[82,1,82,5],[83,3,83,4],[84,3,84,4],[85,3,85,4],[86,3,86,4],[87,3,87,4],[88,3,88,4],[77,0,81,0],[84,0,107,0],[101,3,101,4],[90,3,90,4],[91,3,91,4],[92,3,92,4],[93,3,93,4],[94,3,94,4],[95,3,95,4],[96,3,96,4],[97,3,97,4],[98,3,98,4],[99,3,99,4],[100,3,100,4],[102,3,102,4],[103,3,103,4],[104,3,104,4],[105,3,105,4],[106,3,106,4]]}
["INFORMACIÓN  GENERAL Y TRANSACCIONAL DEL  SUJETO OBLIGADO A SUPERVISAR"]
["IDENTIFICACIÓN "]
[null,"Número de Licencia (Resolución)"]
[null,"Nombre del Sujeto Obligado Declarante"]
[null,"Fecha de  Inscripción al RUC "]
[null,"Razón Social"]
[null,"Razón Comercial "]
[null,"Actividad del Negocio del  Sujeto Obligado  "]
["UBICACIÓN"]
[null,"Calle/Avenida",null,null,"Sitio Web"]
[null,"Nombre del Edificio/Casa"]
[null,"Piso/Local",null,null,"Correo Electrónico"]
[null,"No. De Oficina/Local"]
[null,"Código Postal /Localidad",null,null,"Teléfono de Contacto"]
[null,"Provincia"]
[null,"Distrito"]
[null,"Corregimiento"]
["DATOS GENERALES"]
[null,"Fecha de inicio de operaciones (DD/MM/AAAA)"]
[null,"Número de colaboradores"]
[null,"Número de sucursales o filiales"]
[null,"Nombre de la  asociación o agrupación gremial, en caso de pertenecer"]
[null,"Nombre del Representante Legal"]
[null,"¿Pertenece  a un Grupo Financiero?"]
[null,"Especifique el Grupo Financiero"]
[null,"¿Pertenece a un Grupo Económico?"]
[null,"Especifique el Grupo Económico"]
["ENCARGADO DE LLENAR EL FORMULARIO"]
[null,"Nombre (s)"]
[null,"Apellido Paterno"]
[null,"Apellido Materno"]
[null,"Puesto o Cargo"]
[null,"Fecha de llenado (DD/MM/AAAA)"]
["ESTRUCTURA DE CUMPLIMIENTO"]
[null,"Nombre del Gerente General"]
[null,"Nombre del reemplazo del Responsable de Cumplimiento"]
[null,"Total de estructura de cumplimiento:"]
["CANALES PARA LA ENTRADA Y SALIDA DE FONDOS"]
[null,"Corresponsalía /Custodio",null,null,null,null,"A"]
[null,"E-Trading",null,null,null,null,"A"]
[null,"Oficina del Sujeto Obligado",null,null,"GUARDAR",null,"B"]
[null,"Banco",null,null,null,null,"B"]
[null,"Corredor de Valores /Analista",null,null,"EDITAR",null,"M"]
[null,"Medios electrónicos",null,null,null,null,"A"]
[null,"Otro Canal",null,null,null,null,"A"]
["OTRO PRODUCTOS  Y SERVICIOS"]
[null,"Custodia"]
[null,"Fiducia"]
[null,"Transferencias electrónicas a  nivel nacional o internacional"]
[null,"Administración de cartera o portafolio de inversión"]
[null,"Ejecución de funciones inherentes a agencia de pagos."]
[null,"Préstamo de Valores y Dinero"]
[null,"Corresponsalía",null,null,"GUARDAR"]
[null,"Swap"]
[null,"Credit Default Swap",null,null,"EDITAR"]
[null,"Reportos"]
[null,"Forex"]
[null,"Renta de cajas de seguridad"]
[null,"Otros productos/servicios financieros"]
[null,"Especifique "]
[]
["\nNIVELES  PARA CLASIFICAR EL  RIESGO DEL CLIENTE \n"]
[null,"¿Cuántos niveles consideran para clasificar el riesgo del cliente?",null,null,"GUARDAR"]
[]
[null,null,1,null,"EDITAR"]
[]
["SISTEMA INFORMÁTICO"]
[null,"Nombre de la Herramienta de Monitoreo"]
[null,"Versión de la Herramienta de Monitoreo"]
[null,"Fecha de implementación de la Herramienta de Monitoreo"]
[null,"Fecha de la última actualización de la Herramienta de Monitoreo"]
[null,"Proveedor de la Herramienta de Monitoreo"]
[null,"Total de alertas generadas del periodo solicitado"]
[null,"Total de  Reportes de operaciones sospechosa (ROS)"]
[null,"Total de Reportes de transacciones en efectivo (RTE)"]
[]
["INFORMACIÓN FINANCIERA"]
[null,"Monto Total de Activos Administrados  "]
[null,"Monto Total de entrada  de Activos   "]
[null,"Monto Total de Salidas de Activos"]
[null,"Número Total de Clientes"]
[null,"Monto Total del Capital Social"]
[null,"ESTRUCTURÁ  ACCIONARIA"]
[null,"Principales accionistas (mayor o igual a 10% participación)","Cédula o pasaporte","Nacionalidad"]

{"sheet":"Información de Personal","index":2,"n_rows":76,"n_cols":16,"rows_kept":76,"cut":false,"hidden":false,"merged":[]}
["Consecutivo","Nombre (s)","Apellido paterno","Apellido materno","Fecha de Ingreso","Número de Cédula o Pasaporte","Fecha de expiración del documento de identificación\n","Nacionalidad","Otra Nacionalidad:\nEspecifique","Puesto Actual","Ocupo  un puesto diferente anteriormente, especifique","¿Recibió Capacitación de Prevención de Blanqueo de Capitales?","¿Realizó evaluación de Prevención de Blanqueo de Capitales?","La evaluación fue Aprobada o Reprobada","Estatus","En su caso: Fecha de Baja"]
[1]
[2]
[3]
[4]
[5]
[6]
[7]
[8]
[9]
[10]
[11]
[12]
[13]
[14]
[15]
[16]
[17]
[18]
[19]
[20]
[21]
[22]
[23]
[24]
[25]
[26]
[27]
[28]
[29]
[30]
[31]
[32]
[33]
[34]
[35]
[36]
[37]
[38]
[39]
[40]
[41]
[42]
[43]
[44]
[45]
[46]
[47]
[48]
[49]
[50]
[51]
[52]
[53]
[54]
[55]
[56]
[57]
[58]
[59]
[60]
[61]
[62]
[63]
[64]
[65]
[66]
[67]
[68]
[69]
[70]
[71]
[72]
[73]
[74]
[75]

{"sheet":"Cuentas Para Operacion","index":3,"n_rows":17,"n_cols":9,"rows_kept":17,"cut":false,"hidden":false,"merged":[]}
["Consecutivo","Banco o Entidad del Sistema Financiero","Fecha de Apertura","Tipo de Cuenta","Tipo de Moneda","Uso principal de la Cuenta","Nombre del titular de la cuenta","Número de cliente en la institución financiera","Número de cuenta en la institución financiera"]
[1]
[2]
[3]
[4]
[5]
[6]
[7]
[8]
[9]
[10]
[11]
[12]
[13]
[14]
[15]
[16]

{"sheet":"Entrada y Salida de Dinero Gral","index":4,"n_rows":8,"n_cols":21,"rows_kept":8,"cut":false,"hidden":false,"merged":[[0,1,0,2],[0,3,0,4],[0,5,0,12],[0,13,0,20]]}
[null,"ENTRADA DE FONDOS TOTAL ",null,"SALIDA DE FONDOS TOTAL",null,"ENTRADA  DE FONDOS POR",null,null,null,null,null,null,null,"SALIDA POR:"]
["MES","\nNúmero Total de  Operaciones de Clientes\n","Monto Total Transaccionado \n(Valor Neto)","\nNúmero Total de  Operaciones de Clientes\n","Monto Total Transaccionado\n(Valor Neto)","Número de Transacciones Realizadas  con Efectivo","Monto Total en Efectivo\n(Valor Neto)","Número de Transacciones Realizadas con Cheques","Monto Total  con Cheques\n(Valor Neto)","Número de Transacciones Realizadas con Transferencias Bancarias","Monto Total de Transferencias Bancarias\n(Valor Neto)","Número de Transacciones Realizadas con Transferencias de Valores","Monto Total de Transferencias de Valores\n(Valor Neto)","Número de Transacciones Realizadas con Transferencias en Efectivo","Monto Total en Efectivo\n(Valor Neto)","Número de Transacciones Realizadas con Cheques","Monto Total  con Cheques\n(Valor Neto)","Número de Transacciones Realizadas con Transferencias Bancarias","Monto Total de Transferencias Bancarias\n(Valor Neto)","Número de Transacciones Realizadas con Transferencias de Valores","Monto Total de Transferencias Valores\n(Valor Neto)"]
["JULIO"]
["AGOSTO"]
["SEPTIEMBRE"]
["OCTUBRE"]
["NOVIEMBRE"]
["DICIEMBRE"]

{"sheet":"Entrada y Salida por Paises","index":5,"n_rows":10,"n_cols":5,"rows_kept":10,"cut":false,"hidden":false,"merged":[]}
["MES","Número de países  involucrados en ingreso  de dinero","Número de países involucrados en la salida de dinero"]
["Julio"]
["Agosto"]
["Septiembre",null,null,null,"GUARDAR"]
["Octubre"]
["Noviembre",null,null,null,"EDITAR"]
["Diciembre"]
["Enero"]
["Febrero"]
["Marzo"]

{"sheet":"Entrada de Dinero por País","index":6,"n_rows":7,"n_cols":4,"rows_kept":7,"cut":false,"hidden":true,"merged":[]}
["MES","PAÍS","NÚMERO DE OPERACIONES","MONTO TRANSACCIONADO\r\nValor Neto"]
["JULIO"]
["AGOSTO"]
["SEPTIEMBRE"]
["OCTUBRE"]
["NOVIEMBRE"]
["DICIEMBRE"]

{"sheet":"Salida de Dinero por Pais","index":7,"n_rows":7,"n_cols":4,"rows_kept":7,"cut":false,"hidden":true,"merged":[]}
["MES","PAÍS","NÚMERO DE OPERACIONES","MONTO TRANSACCIONADO\r\nValor Neto"]
["JULIO"]
["AGOSTO"]
["SEPTIEMBRE"]
["OCTUBRE"]
["NOVIEMBRE"]
["DICIEMBRE"]

{"sheet":"Entrada_ Canal de Fondos","index":8,"n_rows":14,"n_cols":15,"rows_kept":14,"cut":false,"hidden":false,"merged":[]}
["CANAL \r\n\r\nMES","Numero de operaciones realizadas en \r\nCorresponsalía /Custodio","Monto Transaccionado Por:\r\n(Valor Neto)\r\nCorresponsalía /Custodio","Numero de operaciones realizadas en \r\nE-Trading","Monto Transaccionado Por:\r\n(Valor Neto)\r\nE-Trading","Numero de operaciones realizadas en \r\nOficina del Sujeto Obligado","Monto Transaccionado Por:\r\n(Valor Neto)\r\nOficina del Sujeto Obligado","Numero de operaciones realizadas en \r\nBanco","Monto Transaccionado Por:\r\n(Valor Neto)\r\nBanco","Numero de operaciones realizadas en \r\nCorredor de Valores /Analista","Monto Transaccionado Por:\r\n(Valor Neto)\r\nCorredor de Valores /Analista","Numero de operaciones realizadas en \r\nMedios electrónicos","Monto Transaccionado Por:\r\n(Valor Neto)\r\nMedios electrónicos","Numero de operaciones realizadas en \r\nOtro Canal","Monto Transaccionado Por:\r\n(Valor Neto)\r\nOtro Canal"]
["JULIO"]
["AGOSTO"]
["SEPTIEMBRE"]
["OCTUBRE"]
["NOVIEMBRE"]
["DICIEMBRE"]
[]
[]
[]
["SUBTOTAL",{"$f":"SUM(B2:B10)","v":0},0,0,0,0,0,{"$f":"SUM(H2:H10)","v":0},{"$f":"SUM(I2:I10)","v":0},0,0,0,0,0,0]
["TOTAL  CLIENTES",{"$f":"SUM(B11,D11,H11,F11,J11,L11,N11)","v":0}]
["TOTAL MONTO",{"$f":"SUM(C11,E11,G11,I11,K11,M11,O11)","v":0}]
["RIESGO DEL CANAL","A","A","A","A","B","B","B","B","M","M","A","A","A","A"]

{"sheet":"Entrada_ Tipo de Cliente","index":9,"n_rows":53,"n_cols":21,"rows_kept":53,"cut":false,"hidden":false,"merged":[]}
["TIPO DE CLIENTE\nValor Total","JULIO","AGOSTO","SEPTIEMBRE","OCTUBRE","NOVIEMBRE","DICIEMBRE","ENERO","MAYO","JUNIO",null,"TOTAL","TOTAL CLIENTES","TOTAL MONTO",null,"#RB","$RB","#RM","$RM","#RA","$RA"]
["Número  de Operaciones  \nPersona Natural Panameña",null,null,null,null,null,null,null,null,null,null,{"$f":"SUM(B2:J2)","v":0},{"$f":"SUM(L2,L4,L6,L8,L10,L12,L14,L16,L18,L20,L22,L24,L26,L28,L30,L32,L34,L36,L38,L40,L42,L44,L46,L48,L50,L52)","v":0},{"$f":"SUM(L3,L5,L7,L9,L11,L13,L15,L17,L19,L21,L23,L25,L27,L29,L31,L33,L35,L37,L39,L41,L43,L45,L47,L49,L51,L53)","v":0}]
["Monto Transaccionado de Clientes de : \nPersona Natural Panameña",null,null,null,null,null,null,null,null,null,null,{"$f":"SUM(B3:J3)","v":0}]
["Número  de Operaciones\nPersona Natural Extranjera",null,null,null,null,null,null,null,null,null,null,0]
["Monto Transaccionado de Clientes :\nPersona Natural Extranjera",null,null,null,null,null,null,null,null,null,null,0]
["Número  de  Operaciones\nPersona Natural Panameña\nPersona Expuesta Políticamente",null,null,null,null,null,null,null,null,null,null,0]
["Monto Transaccionado de Clientes : \nPersona Natural Panameña\nPersona Expuesta Políticamente",null,null,null,null,null,null,null,null,null,null,0]
["Número  de Operaciones\nPersona Natural Extranjera\nPersona Expuesta Políticamente",null,null,null,null,null,null,null,null,null,null,0]
["Monto Transaccionado de Clientes :\nPersona Natural Extranjera\nPersona Expuesta Políticamente",null,null,null,null,null,null,null,null,null,null,0]
["Número  de  Operaciones\nPersona Natural \n(Casinos)",null,null,null,null,null,null,null,null,null,null,0]
["Monto Transaccionado de Clientes: \nPersona Natural \n(Casinos)",null,null,null,null,null,null,null,null,null,null,0]
["Número  de Operaciones\nPersona Natural \n(Agentes  Inmobiliarios)",null,null,null,null,null,null,null,null,null,null,0]
["Monto Transaccionado de Clientes : \nPersona Natural \n(Agentes  Inmobiliarios)",null,null,null,null,null,null,null,null,null,null,0]
["Número de Operaciones\n Persona Natural \n(Comerciantes de metales y/o Piedras  preciosas",null,null,null,null,null,null,null,null,null,null,0]
["Monto Transaccionado de  Clientes : \n Persona Natural\n(Comerciantes de metales y/o Piedras  preciosas",null,null,null,null,null,null,null,null,null,null,0]
["Número  de Operaciones\n Persona Natural\n(Abogados / Notarios, Otros profesionales jurídicos independientes y contadores)",null,null,null,null,null,null,null,null,null,null,0]
["Monto Transaccionado de Clientes :  \nPersona Natural\n(Abogados / Notarios, Otros profesionales jurídicos independientes y contadores)",null,null,null,null,null,null,null,null,null,null,0]
["Número  de  Operaciones\n Persona Natural\n(Otros proveedores de servicios societarios y fideicomisos)",null,null,null,null,null,null,null,null,null,null,0]
["Monto Transaccionado  de Clientes : \n Persona Natural\n(Otros proveedores de servicios societarios y fideicomisos)",null,null,null,null,null,null,null,null,null,null,0]
["Número   de Operaciones\n Persona Natural\n(Organizaciones sin fines de lucro)",null,null,null,null,null,null,null,null,null,null,0]
["Monto Transaccionado de Clientes: \n Persona Natural\n(Organizaciones sin fines de lucro)",null,null,null,null,null,null,null,null,null,null,0]
["Número   de  Operaciones\n Persona Natural\n(Fundaciones)",null,null,null,null,null,null,null,null,null,null,0]
["Monto Transaccionado de Clientes: \n Persona Natural\n(Fundaciones)",null,null,null,null,null,null,null,null,null,null,0]
["Número  de Operaciones\n Persona Natural De Alto riesgo\n",null,null,null,null,null,null,null,null,null,null,0]
["Monto Transaccionado de Clientes : \n Persona Natural de Alto Riesgo",null,null,null,null,null,null,null,null,null,null,0]
["Número  de Operaciones\n Persona Natural\n(Clasificación diferente  a las anteriores)",null,null,null,null,null,null,null,null,null,null,0]
["Monto Transaccionado de Clientes\n Persona Natural\n(Clasificación diferente  a las anteriores)",null,null,null,null,null,null,null,null,null,null,{"$f":"SUM(B27:J27)","v":0}]
["Número  de Operaciones\nPersona Jurídica Panameña",null,null,null,null,null,null,null,null,null,null,0]
["Monto Transaccionado de Clientes\nPersona Jurídica Panameña",null,null,null,null,null,null,null,null,null,null,0]
["Número  de  Clientes\nPersona Jurídica Extranjera",null,null,null,null,null,null,null,null,null,null,0]
["Monto Transaccionado  de Clientes  :\nPersona Jurídica Extranjera",null,null,null,null,null,null,null,null,null,null,0]
["Número  de Operaciones\nPersona Jurídica Panameña\nPersona Expuesta Políticamente",null,null,null,null,null,null,null,null,null,null,0]
["Monto Transaccionado de Clientes : \nPersona Jurídica Panameña\nPersona Expuesta Políticamente",null,null,null,null,null,null,null,null,null,null,0]
["Número  de Operaciones\nPersona Jurídica Extranjera\nPersona Expuesta Políticamente",null,null,null,null,null,null,null,null,null,null,0]
["Monto Transaccionado  de Clientes :\nPersona Jurídica Extranjera\nPersona Expuesta Políticamente",null,null,null,null,null,null,null,null,null,null,0]
["Número  de  Operaciones\nPersona Jurídica \n(Casinos)",null,null,null,null,null,null,null,null,null,null,0]
["Monto Transaccionado de Clientes : \nPersona Jurídica \n(Casinos)",null,null,null,null,null,null,null,null,null,null,0]
["Número  de Operaciones\nPersona Jurídica \n(Agentes  Inmobiliarios)",null,null,null,null,null,null,null,null,null,null,0]
["Monto Transaccionado de Clientes:\nPersona Jurídica\n(Agentes  Inmobiliarios)",null,null,null,null,null,null,null,null,null,null,0]
["Número  de  Operaciones\n Persona Jurídica \n(Comerciantes de metales y/o Piedras  preciosas",null,null,null,null,null,null,null,null,null,null,0]
["Monto Transaccionado de Clientes:  \n Persona Jurídica\n(Comerciantes de metales y/o Piedras  preciosas",null,null,null,null,null,null,null,null,null,null,0]
["Número  de  Operaciones\n Persona Jurídica \n(Abogados / Notarios, Otros profesionales jurídicos independientes y contadores)",null,null,null,null,null,null,null,null,null,null,0]
["Monto Transaccionado de Clientes:\n Persona Jurídica\n(Abogados / Notarios, Otros profesionales jurídicos independientes y contadores)",null,null,null,null,null,null,null,null,null,null,0]
["Número   de Operaciones\n Persona Jurídica \n(Otros proveedores de servicios societarios y fideicomisos)",null,null,null,null,null,null,null,null,null,null,0]
["Monto Transaccionado de Clientes:\n Persona Jurídica\n(Otros proveedores de servicios societarios y fideicomisos)",null,null,null,null,null,null,null,null,null,null,0]
["Número de  Operaciones\n Persona Jurídica \n(Organizaciones sin fines de lucro)",null,null,null,null,null,null,null,null,null,null,0]
["Monto Transaccionado de Clientes\n Persona Jurídica \n(Organizaciones sin fines de lucro)",null,null,null,null,null,null,null,null,null,null,0]
["Número de Operaciones\n Persona Jurídica \n(Fundaciones)",null,null,null,null,null,null,null,null,null,null,0]
["Monto Transaccionado de Clientes\n Persona Jurídica \n(Fundaciones)",null,null,null,null,null,null,null,null,null,null,0]
["Número  de Operaciones\n Persona Jurídica \n(Clasificación diferente a las anteriores)",null,null,null,null,null,null,null,null,null,null,0]
["Monto Transaccionado de Clientes\n Persona Jurídica \n(Clasificación diferente a las anteriores)",null,null,null,null,null,null,null,null,null,null,0]
["Número  de Operaciones\n Persona Jurídica de Alto Riesgo\n(Clasificación diferente a las anteriores)",null,null,null,null,null,null,null,null,null,null,0]
["Monto Transaccionado de Clientes\n Persona Jurídica de Alto Riesgo\n(Clasificación diferente a las anteriores)",null,null,null,null,null,null,null,null,null,null,{"$f":"SUM(B53:J53)","v":0}]

{"sheet":"Entrada por Nivel de Riesgo ","index":10,"n_rows":13,"n_cols":13,"rows_kept":13,"cut":false,"hidden":false,"merged":[]}
["\r\nMES","Numero  de Operaciones\r\n Nivel de Riesgo 1\r\n\r\nBAJO","Monto Transaccionado \r\n(Valor Neto)\r\n Nivel de Riesgo   1\r\nBAJO","Numero  de Operaciones\r\n Nivel de Riesgo 2\r\n\r\n ","Monto Transaccionado \r\n(Valor Neto)\r\n Nivel de Riesgo   2\r\n ","Numero  de Operaciones\r\n Nivel de Riesgo 3\r\n\r\nALTO","Monto Transaccionado \r\n(Valor Neto)\r\n Nivel de Riesgo   3\r\nALTO"]
["JULIO"]
["AGOSTO"]
["SEPTIEMBRE"]
["OCTUBRE"]
["NOVIEMBRE"]
["DICIEMBRE"]
["ENERO"]
["FEBRERO"]
["JUNIO"]
["SUBTOTAL",{"$f":"SUM(B2:B10)","v":0},0,0,0,0,0,0,0,0,0,0,0]
["TOTAL DE CLIENTES",{"$f":"SUM(B11,D11,F11,H11,J11,L11)","v":0}]
["TOTAL DE MONTO TRANSACCIONADO",{"$f":"SUM(C11,E11,G11,I11,K11,M11)","v":0}]

{"sheet":"Salida_ Canal de Fondos","index":11,"n_rows":14,"n_cols":17,"rows_kept":14,"cut":false,"hidden":false,"merged":[]}
["CANAL \r\n\r\nMES","Numero de operaciones realizadas en \r\nCorresponsalía /Custodio","Monto Transaccionado Por:\r\n(Valor Neto)\r\nCorresponsalía /Custodio","Numero de operaciones realizadas en \r\nE-Trading","Monto Transaccionado Por:\r\n(Valor Neto)\r\nE-Trading","Numero de operaciones realizadas en \r\nOficina del Sujeto Obligado","Monto Transaccionado Por:\r\n(Valor Neto)\r\nOficina del Sujeto Obligado","Numero de operaciones realizadas en \r\nBanco","Monto Transaccionado Por:\r\n(Valor Neto)\r\nBanco","Numero de operaciones realizadas en \r\nCorredor de Valores /Analista","Monto Transaccionado Por:\r\n(Valor Neto)\r\nCorredor de Valores /Analista","Numero de operaciones realizadas en \r\nMedios electrónicos","Monto Transaccionado Por:\r\n(Valor Neto)\r\nMedios electrónicos","Numero de operaciones realizadas en \r\nOtro Canal","Monto Transaccionado Por:\r\n(Valor Neto)\r\nOtro Canal","Columna16","Columna17"]
["JULIO"]
["AGOSTO"]
["SEPTIEMBRE"]
["OCTUBRE"]
["NOVIEMBRE"]
["DICIEMBRE"]
["ENERO"]
["FEBRERO"]
["JUNIO"]
["SUBTOTAL",{"$f":"SUM(B2:B10)","v":0},{"$f":"SUM(C2:C10)","v":0},0,0,0,0,0,0,0,0,0,0,0,0,0,0]
["TOTAL CLIENTES",{"$f":"SUM(B11,D11,F11,H11,J11,L11,N11)","v":0}]
["TOTAL MONTO",{"$f":"SUM(C11,E11,G11,I11,K11,M11,O11)","v":0}]
["RIESGO DEL CANAL","A","A","A","A","B","B","B","B","M","M","A","A","A","A"]

{"sheet":"Salida_ Tipo de Cliente ","index":12,"n_rows":53,"n_cols":14,"rows_kept":53,"cut":false,"hidden":false,"merged":[]}
["CONCEPTO","JULIO","AGOSTO","SEPTIEMBRE","OCTUBRE","NOVIEMBRE","DICIEMBRE","ENERO","MAYO","JUNIO",null,"TOTAL","TOTAL CLIENTES","TOTAL MONTO"]
["Número  de Operaciones  \nPersona Natural Panameña",null,null,null,null,null,null,null,null,null,null,{"$f":"SUM(B2:J2)","v":0},{"$f":"SUM(L2,L4,L6,L8,L10,L12,L14,L16,L18,L20,L22,L24,L26,L28,L30,L32,L34,L36,L38,L40,L42,L44,L46,L48,L50,L52)","v":0},{"$f":"SUM(L3,L5,L7,L9,L11,L13,L15,L17,L19,L21,L23,L25,L27,L29,L31,L33,L35,L37,L39,L41,L43,L45,L47,L49,L51,L53)","v":0}]
["Monto Transaccionado de Clientes de : \nPersona Natural Panameña",null,null,null,null,null,null,null,null,null,null,{"$f":"SUM(B3:J3)","v":0}]
["Número  de Operaciones\nPersona Natural Extranjera",null,null,null,null,null,null,null,null,null,null,{"$f":"SUM(B4:J4)","v":0}]
["Monto Transaccionado de Clientes :\nPersona Natural Extranjera",null,null,null,null,null,null,null,null,null,null,0]
["Número  de  Operaciones\nPersona Natural Panameña\nPersona Expuesta Políticamente",null,null,null,null,null,null,null,null,null,null,0]
["Monto Transaccionado de Clientes : \nPersona Natural Panameña\nPersona Expuesta Políticamente",null,null,null,null,null,null,null,null,null,null,0]
["Número  de Operaciones\nPersona Natural Extranjera\nPersona Expuesta Políticamente",null,null,null,null,null,null,null,null,null,null,0]
["Monto Transaccionado de Clientes :\nPersona Natural Extranjera\nPersona Expuesta Políticamente",null,null,null,null,null,null,null,null,null,null,0]
["Número  de  Operaciones\nPersona Natural \n(Casinos)",null,null,null,null,null,null,null,null,null,null,0]
["Monto Transaccionado de Clientes: \nPersona Natural \n(Casinos)",null,null,null,null,null,null,null,null,null,null,0]
["Número  de Operaciones\nPersona Natural \n(Agentes  Inmobiliarios)",null,null,null,null,null,null,null,null,null,null,0]
["Monto Transaccionado de Clientes : \nPersona Natural \n(Agentes  Inmobiliarios)",null,null,null,null,null,null,null,null,null,null,0]
["Número de Operaciones\n Persona Natural \n(Comerciantes de metales y/o Piedras  preciosas",null,null,null,null,null,null,null,null,null,null,0]
["Monto Transaccionado de  Clientes : \n Persona Natural\n(Comerciantes de metales y/o Piedras  preciosas",null,null,null,null,null,null,null,null,null,null,0]
["Número  de Operaciones\n Persona Natural\n(Abogados / Notarios, Otros profesionales jurídicos independientes y contadores)",null,null,null,null,null,null,null,null,null,null,0]
["Monto Transaccionado de Clientes :  \nPersona Natural\n(Abogados / Notarios, Otros profesionales jurídicos independientes y contadores)",null,null,null,null,null,null,null,null,null,null,0]
["Número  de  Operaciones\n Persona Natural\n(Otros proveedores de servicios societarios y fideicomisos)",null,null,null,null,null,null,null,null,null,null,0]
["Monto Transaccionado  de Clientes : \n Persona Natural\n(Otros proveedores de servicios societarios y fideicomisos)",null,null,null,null,null,null,null,null,null,null,0]
["Número   de Operaciones\n Persona Natural\n(Organizaciones sin fines de lucro)",null,null,null,null,null,null,null,null,null,null,0]
["Monto Transaccionado de Clientes: \n Persona Natural\n(Organizaciones sin fines de lucro)",null,null,null,null,null,null,null,null,null,null,0]
["Número   de  Operaciones\n Persona Natural\n(Fundaciones)",null,null,null,null,null,null,null,null,null,null,0]
["Monto Transaccionado de Clientes: \n Persona Natural\n(Fundaciones)",null,null,null,null,null,null,null,null,null,null,0]
["Número  de Operaciones\n Persona Natural De Alto riesgo\n",null,null,null,null,null,null,null,null,null,null,0]
["Monto Transaccionado de Clientes : \n Persona Natural de Alto Riesgo",null,null,null,null,null,null,null,null,null,null,0]
["Número  de Operaciones\n Persona Natural\n(Clasificación diferente  a las anteriores)",null,null,null,null,null,null,null,null,null,null,0]
["Monto Transaccionado de Clientes\n Persona Natural\n(Clasificación diferente  a las anteriores)",null,null,null,null,null,null,null,null,null,null,{"$f":"SUM(B27:J27)","v":0}]
["Número  de Operaciones\nPersona Jurídica Panameña",null,null,null,null,null,null,null,null,null,null,0]
["Monto Transaccionado de Clientes\nPersona Jurídica Panameña",null,null,null,null,null,null,null,null,null,null,0]
["Número  de  Clientes\nPersona Jurídica Extranjera",null,null,null,null,null,null,null,null,null,null,0]
["Monto Transaccionado  de Clientes  :\nPersona Jurídica Extranjera",null,null,null,null,null,null,null,null,null,null,0]
["Número  de Operaciones\nPersona Jurídica Panameña\nPersona Expuesta Políticamente",null,null,null,null,null,null,null,null,null,null,0]
["Monto Transaccionado de Clientes : \nPersona Jurídica Panameña\nPersona Expuesta Políticamente",null,null,null,null,null,null,null,null,null,null,0]
["Número  de Operaciones\nPersona Jurídica Extranjera\nPersona Expuesta Políticamente",null,null,null,null,null,null,null,null,null,null,0]
["Monto Transaccionado  de Clientes :\nPersona Jurídica Extranjera\nPersona Expuesta Políticamente",null,null,null,null,null,null,null,null,null,null,0]
["Número  de  Operaciones\nPersona Jurídica \n(Casinos)",null,null,null,null,null,null,null,null,null,null,0]
["Monto Transaccionado de Clientes : \nPersona Jurídica \n(Casinos)",null,null,null,null,null,null,null,null,null,null,0]
["Número  de Operaciones\nPersona Jurídica \n(Agentes  Inmobiliarios)",null,null,null,null,null,null,null,null,null,null,0]
["Monto Transaccionado de Clientes:\nPersona Jurídica\n(Agentes  Inmobiliarios)",null,null,null,null,null,null,null,null,null,null,0]
["Número  de  Operaciones\n Persona Jurídica \n(Comerciantes de metales y/o Piedras  preciosas",null,null,null,null,null,null,null,null,null,null,0]
["Monto Transaccionado de Clientes:  \n Persona Jurídica\n(Comerciantes de metales y/o Piedras  preciosas",null,null,null,null,null,null,null,null,null,null,0]
["Número  de  Operaciones\n Persona Jurídica \n(Abogados / Notarios, Otros profesionales jurídicos independientes y contadores)",null,null,null,null,null,null,null,null,null,null,0]
["Monto Transaccionado de Clientes:\n Persona Jurídica\n(Abogados / Notarios, Otros profesionales jurídicos independientes y contadores)",null,null,null,null,null,null,null,null,null,null,0]
["Número   de Operaciones\n Persona Jurídica \n(Otros proveedores de servicios societarios y fideicomisos)",null,null,null,null,null,null,null,null,null,null,0]
["Monto Transaccionado de Clientes:\n Persona Jurídica\n(Otros proveedores de servicios societarios y fideicomisos)",null,null,null,null,null,null,null,null,null,null,0]
["Número de  Operaciones\n Persona Jurídica \n(Organizaciones sin fines de lucro)",null,null,null,null,null,null,null,null,null,null,0]
["Monto Transaccionado de Clientes\n Persona Jurídica \n(Organizaciones sin fines de lucro)",null,null,null,null,null,null,null,null,null,null,0]
["Número de Operaciones\n Persona Jurídica \n(Fundaciones)",null,null,null,null,null,null,null,null,null,null,0]
["Monto Transaccionado de Clientes\n Persona Jurídica \n(Fundaciones)",null,null,null,null,null,null,null,null,null,null,0]
["Número  de Operaciones\n Persona Jurídica \n(Clasificación diferente a las anteriores)",null,null,null,null,null,null,null,null,null,null,0]
["Monto Transaccionado de Clientes\n Persona Jurídica \n(Clasificación diferente a las anteriores)",null,null,null,null,null,null,null,null,null,null,0]
["Número  de Operaciones\n Persona Jurídica de Alto Riesgo\n(Clasificación diferente a las anteriores)",null,null,null,null,null,null,null,null,null,null,0]
["Monto Transaccionado de Clientes\n Persona Jurídica de Alto Riesgo\n(Clasificación diferente a las anteriores)",null,null,null,null,null,null,null,null,null,null,0]

{"sheet":"Salida por Nivel de Riesgo","index":13,"n_rows":13,"n_cols":13,"rows_kept":13,"cut":false,"hidden":false,"merged":[]}
["\r\nMES","Numero  de Operaciones\r\n Nivel de Riesgo  1\r\n\r\nBAJO","Monto Transaccionado  \r\n(Valor Neto)\r\n Nivel de Riesgo    1\r\nBAJO","Numero  de Operaciones\r\n Nivel de Riesgo  2\r\n\r\n ","Monto Transaccionado  \r\n(Valor Neto)\r\n Nivel de Riesgo    2\r\n ","Numero  de Operaciones\r\n Nivel de Riesgo  3\r\n\r\nALTO","Monto Transaccionado  \r\n(Valor Neto)\r\n Nivel de Riesgo    3\r\nALTO"]
["JULIO"]
["AGOSTO"]
["SEPTIEMBRE"]
["OCTUBRE"]
["NOVIEMBRE"]
["DICIEMBRE"]
["ENERO"]
["FEBRERO"]
["MARZO"]
["ABRIL",{"$f":"SUM(B2:B10)","v":0},{"$f":"SUM(C2:C10)","v":0},0,0,0,0,0,0,0,0,{"$f":"SUM(L2:L10)","v":0},{"$f":"SUM(M2:M10)","v":0}]
["MAYO",{"$f":"SUM(B11,D11,F11,H11,J11,L11)","v":0}]
["JUNIO",{"$f":"SUM(C11,E11,G11,I11,K11,M11)","v":0}]

{"sheet":"Otros productos","index":14,"n_rows":1,"n_cols":5,"rows_kept":1,"cut":false,"hidden":true,"merged":[]}
["MES","PRODUCTO","NÚMERO TOTAL DE CLIENTES","ENTRADA DE FONDOS\nMONTO TOTAL TRANSACCIONADO \n(Valor Neto)","SALIDA DE FONDOS\nMONTO TOTAL TRANSACCIONADO \n(Valor Neto)"]

{"sheet":"Custodios","index":15,"n_rows":1,"n_cols":4,"rows_kept":1,"cut":false,"hidden":false,"merged":[]}
["NOMBRE DE CUSTODIO","MONTO CUSTODIADO","PERTENECE A UN GRUPO FINANCIERO O ECONÓMICO","NOMBRE DEL GRUPO FINANCIERO ECONÓMICO"]

{"sheet":"VALIDAR ARCHIVO","index":16,"n_rows":9,"n_cols":4,"rows_kept":9,"cut":false,"hidden":false,"merged":[[3,2,4,4]]}
[]
[]
[]
[null,null,"Antes del envío de la información verifique  que el ingreso de la información es clara,  por favor  de doble click:"]
[]
[]
[]
[]
[null,null,null,"VALIDAR INFORMACIÓN"]

{"sheet":"MATRIZ","index":17,"n_rows":52,"n_cols":11,"rows_kept":52,"cut":false,"hidden":true,"merged":[[30,0,37,0],[40,0,47,0],[0,0,3,0],[1,7,7,7],[2,9,2,11],[4,0,7,0],[10,0,17,0],[20,0,27,0]]}
["1.- Evaluación de la calidad  de información respecto al número de operaciones realizadas por clientes (Entrada y Salida)","Operaciones de Entrada   Clientes\n(C. PRODUCTO)"," Operaciones de Entrada Clientes\n(C. CLIENTES)"," Operaciones de Entrada Clientes\n(C. CANAL DE FONDOS)"," Operaciones de Entrada  Clientes\n(C. POR RIESGO)","Operaciones  de Entrada  Clientes\n(C. Z.G)","EVALUACIÓN","EVALUACIÓN GRAL."]
[null,{"$f":"SUM('Entrada y Salida de Dinero Gral'!B3:B11)","v":0},{"$f":"'Entrada_ Tipo de Cliente'!M2","v":0},{"$f":"'Entrada_ Canal de Fondos'!B12","v":0},{"$f":"'Entrada por Nivel de Riesgo '!B12","v":0},{"$f":"SUM('Entrada de Dinero por País'!C:C)","v":0},{"$f":"IF(B2=C2,IF(C2=D2,IF(D2=E2,IF(E2=F2,\"CONGRUENTE\",\"INCONGRUENTE\"),\"INCONGRUENTE\"),\"INCONGRUENTE\"),\"INCONGRUENTE\")","v":"CONGRUENTE"},{"$f":"IF(G2=\"CONGRUENTE\",IF(G4=\"CONGRUENTE\",IF(G6=\"CONGRUENTE\",IF(G8=\"CONGRUENTE\",\"CONGRUENTE\",\"INCONGRUENTE\"),\"INCONGRUENTE\"),\"INCONGRUENTE\"),\"INCONGRUENTE\")","v":"CONGRUENTE"}]
[null,"Operaciones de  Salida  Clientes\n(C.PRODUCTO)","Operaciones de Salida  Clientes\n(C.CLIENTES)"," Operaciones de Salida  Clientes\n(C.CANAL DE FONDOS)","Operaciones de Salida  Clientes\n(C. POR RIESGO)","Operaciones de Salida Clientes\n(C.Z.G)",null,null,null,"PULSE EL SIGUIENTE BOTÓN, PARA REALIZAR LA EVALLUACIÓN DE RIESGOS DEL SUJETO OBLIGADO."]
[null,{"$f":"SUM('Entrada y Salida de Dinero Gral'!D3:D11)","v":0},{"$f":"'Salida_ Tipo de Cliente '!M2","v":0},{"$f":"'Salida_ Canal de Fondos'!B12","v":0},{"$f":"'Salida por Nivel de Riesgo'!B12","v":0},{"$f":"SUM('Salida de Dinero por Pais'!C:C)","v":0},{"$f":"IF(B4=C4,IF(C4=D4,IF(D4=E4,IF(E4=F4,\"CONGRUENTE\",\"INCONGRUENTE\"),\"INCONGRUENTE\"),\"INCONGRUENTE\"),\"INCONGRUENTE\")","v":"CONGRUENTE"}]
["2.- Evaluación de la calidad  de información respecto al Monto Transaccionados (Entrada y Salida)","ENTRADA\nMonto Total Transaccionado \n(PRODUCTO)","ENTRADA\nMonto Total Transaccionado \n(C. CLIENTES)","ENTRADA\nMonto Total Transaccionado \n(C. CANAL DE FONDOS)","ENTRADA\nMonto Total Transaccionado \n(C.  POR RIESGO)","ENTRADA\nMonto Total Transaccionado \n(C. Z.G)",null,null,null,null,"GENERAR MATRIZ"]
[null,{"$f":"SUM('Entrada y Salida de Dinero Gral'!C3:C11)","v":0},{"$f":"'Entrada_ Tipo de Cliente'!N2","v":0},{"$f":"'Entrada_ Canal de Fondos'!B13","v":0},{"$f":"'Entrada por Nivel de Riesgo '!B13","v":0},{"$f":"SUM('Entrada de Dinero por País'!D:D)","v":0},{"$f":"IF(B6=C6,IF(C6=D6,IF(D6=E6,IF(E6=F6,\"CONGRUENTE\",\"INCONGRUENTE\"),\"INCONGRUENTE\"),\"INCONGRUENTE\"),\"INCONGRUENTE\")","v":"CONGRUENTE"}]
[null,"SALIDA\nMonto Total Transaccionado\n(PRODUCTO)","SALIDA\nMonto Total Transaccionado\n(C. CLIENTES)","SALIDA\nMonto Total Transaccionado\n(C. CANAL DE FONDOS)","SALIDA\nMonto Total Transaccionado\n(C. POR RIESGO)\n","SALIDA\nMonto Total Transaccionado\n(C.Z.G)\n"]
[null,{"$f":"SUM('Entrada y Salida de Dinero Gral'!E3:E11)","v":0},{"$f":"'Salida_ Tipo de Cliente '!N2","v":0},{"$f":"'Salida_ Canal de Fondos'!B13","v":0},{"$f":"'Salida por Nivel de Riesgo'!B13","v":0},{"$f":"SUM('Salida de Dinero por Pais'!D:D)","v":0},{"$f":"IF(B8=C8,IF(C8=D8,IF(D8=E8,IF(E8=F8,\"CONGRUENTE\",\"INCONGRUENTE\"),\"INCONGRUENTE\"),\"INCONGRUENTE\"),\"INCONGRUENTE\")","v":"CONGRUENTE"}]
[]
[null,{"$f":"'Información General'!$C$63","v":0}]
["3.- Evaluación de su clasificación de Niveles de  Riesgo.","ENTRADA\nTOTAL DE CLIENTES","ENTRADA \nRIESGO BAJO\nClientes","ENTRADA \nRIESGO MEDIO\nClientes","ENTRADA\n RIESGO ALTO\nClientes","ENTRADA \nRIESGO BAJO\n% Clientes","ENTRADA \nRIESGO MEDIO\n% Clientes","ENTRADA\n RIESGO ALTO\n% Clientes"]
[null,0,null,null,null,{"$f":"C12/$B$12","v":{"$error":"#DIV/0!"}},{"$f":"D12/$B$12","v":{"$error":"#DIV/0!"}},{"$error":"#DIV/0!"}]
[null,"SALIDA \nTOTAL DE CLIENTES","SALIDA\n RIESGO BAJO\nClientes","SALIDA \nRIEGO MEDIO\nClientes","SALIDA \nRIESGO ALTO\nClientes","SALIDA\n RIESGO BAJO\n% Clientes","SALIDA \nRIEGO MEDIO\n% Clientes","SALIDA \nRIESGO ALTO\n% Clientes"]
[null,0,null,null,null,{"$f":"C14/$B$14","v":{"$error":"#DIV/0!"}},{"$f":"D14/$B$14","v":{"$error":"#DIV/0!"}},{"$error":"#DIV/0!"}]
[null,"ENTRADA\nTOTAL DE MONTO TRANSACCIONADO","ENTRADA\n RIESGO BAJO\nMonto Transaccionado","ENTRADA\n RIESGO MEDIO\nMonto Transaccionado","ENTRADA\n RIESGO ALTO\nMonto Transaccionado","ENTRADA\n RIESGO BAJO\n% Monto","ENTRADA\n RIESGO MEDIO\n% Monto ","ENTRADA\n RIESGO ALTO\n% Monto "]
[null,0,null,null,null,{"$f":"'Entrada por Nivel de Riesgo '!$E$11","v":0},{"$f":"D16/$B$16","v":{"$error":"#DIV/0!"}},{"$error":"#DIV/0!"}]
[null,"SALIDA \nTOTAL DE MONTO TRANSACCIONADO","SALIDA \nRIESGO BAJO\nMonto Transaccionado","SALIDA\n RIESGO MEDIO\nMonto Transaccionado","SALIDA \nRIESGO ALTO\nMonto Transaccionado","SALIDA \nRIESGO BAJO\n% Monto ","SALIDA\n RIESGO MEDIO\n% Monto ","SALIDA \nRIESGO ALTO\n%Monto"]
[null,0,null,null,null,{"$f":"'Salida por Nivel de Riesgo'!$E$11","v":0},{"$f":"D18/$B$18","v":{"$error":"#DIV/0!"}},{"$error":"#DIV/0!"}]
[]
[]
["4.- Evaluación del Riesgo  de acuerdo a la clasificación de personas morales, juridicas, nacionales, extranjeras, PEP,  actividades vulnerables,  etc.","TOTAL DE CLIENTES","ENTRADA \nRIESGO BAJO\nClientes","ENTRADA\n RIESGO MEDIO\nClientes","ENTRADA \nRIESGO ALTO\nClientes","ENTRADA \nRIESGO BAJO\n% Clientes","ENTRADA \nRIESGO MEDIO\n% Clientes","ENTRADA\n RIESGO ALTO\n% Clientes"]
[null,{"$f":"'Entrada_ Tipo de Cliente'!M2","v":0},{"$f":"SUM('Entrada_ Tipo de Cliente'!L2,'Entrada_ Tipo de Cliente'!L4,'Entrada_ Tipo de Cliente'!L26,'Entrada_ Tipo de Cliente'!L28,'Entrada_ Tipo de Cliente'!L30,'Entrada_ Tipo de Cliente'!L50)","v":0},{"$f":"SUM('Entrada_ Tipo de Cliente'!L10,'Entrada_ Tipo de Cliente'!L12,'Entrada_ Tipo de Cliente'!L14,'Entrada_ Tipo de Cliente'!L16,'Entrada_ Tipo de Cliente'!L18,'Entrada_ Tipo de Cliente'!L36,'Entrada_ Tipo de Cliente'!L38,'Entrada_ Tipo de Cliente'!L40,'Entrada_ Tipo de Cliente'!L42,'Entrada_ Tipo de Cliente'!L44)","v":0},{"$f":"SUM('Entrada_ Tipo de Cliente'!L6,'Entrada_ Tipo de Cliente'!L8,'Entrada_ Tipo de Cliente'!L20,'Entrada_ Tipo de Cliente'!L22,'Entrada_ Tipo de Cliente'!L24,'Entrada_ Tipo de Cliente'!L32,'Entrada_ Tipo de Cliente'!L34,'Entrada_ Tipo de Cliente'!L46,'Entrada_ Tipo de Cliente'!L48,'Entrada_ Tipo de Cliente'!L52)","v":0},{"$f":"C22/$B$22","v":{"$error":"#DIV/0!"}},{"$f":"D22/$B$22","v":{"$error":"#DIV/0!"}},{"$error":"#DIV/0!"}]
[null,"TOTAL DE CLIENTES","SALIDA  \nRIESGO BAJO\nClientes","SALIDA \nRIESGO MEDIO\nClientes","SALIDA \nRIESGO ALTO\nClientes","SALIDA\n RIESGO BAJO\n% Clientes","SALIDA \nRIEGO MEDIO\n% Clientes","SALIDA \nRIESGO ALTO\n% Clientes"]
[null,{"$f":"'Salida_ Tipo de Cliente '!M2","v":0},{"$f":"SUM('Salida_ Tipo de Cliente '!L2,'Salida_ Tipo de Cliente '!L4,'Salida_ Tipo de Cliente '!L26,'Salida_ Tipo de Cliente '!L28,'Salida_ Tipo de Cliente '!L30,'Salida_ Tipo de Cliente '!L50)","v":0},{"$f":"SUM('Salida_ Tipo de Cliente '!L10,'Salida_ Tipo de Cliente '!L12,'Salida_ Tipo de Cliente '!L14,'Salida_ Tipo de Cliente '!L16,'Salida_ Tipo de Cliente '!L36,'Salida_ Tipo de Cliente '!L38,'Salida_ Tipo de Cliente '!L40,'Salida_ Tipo de Cliente '!L42,'Salida_ Tipo de Cliente '!L44)","v":0},{"$f":"SUM('Salida_ Tipo de Cliente '!L6,'Salida_ Tipo de Cliente '!L8,'Salida_ Tipo de Cliente '!L20,'Salida_ Tipo de Cliente '!L22,'Salida_ Tipo de Cliente '!L24,'Salida_ Tipo de Cliente '!L32,'Salida_ Tipo de Cliente '!L34,'Salida_ Tipo de Cliente '!L46,'Salida_ Tipo de Cliente '!L48,'Salida_ Tipo de Cliente '!L52)","v":0},{"$f":"C24/$B$24","v":{"$error":"#DIV/0!"}},{"$f":"D24/$B$24","v":{"$error":"#DIV/0!"}},{"$f":"E24/B24","v":{"$error":"#DIV/0!"}}]
[null,"ENTRADA\nTOTAL DE MONTO TRANSACCIONADO","ENTRADA\nRIESGO BAJO\nMonto Transaccionado","ENTRADA \nRIESGO MEDIO\nMonto Transaccionado","ENTRADA \nRIESGO ALTO\nMonto Transaccionado","ENTRADA\n RIESGO BAJO\n% Monto","ENTRADA\n RIESGO MEDIO\n% Monto ","ENTRADA\n RIESGO ALTO\n% Monto "]
[null,{"$f":"'Entrada_ Tipo de Cliente'!N2","v":0},{"$f":"SUM('Entrada_ Tipo de Cliente'!L3,'Entrada_ Tipo de Cliente'!L5,'Entrada_ Tipo de Cliente'!L27,'Entrada_ Tipo de Cliente'!L29,'Entrada_ Tipo de Cliente'!L31,'Entrada_ Tipo de Cliente'!L51)","v":0},{"$f":"SUM('Entrada_ Tipo de Cliente'!L11,'Entrada_ Tipo de Cliente'!L13,'Entrada_ Tipo de Cliente'!L15,'Entrada_ Tipo de Cliente'!L17,'Entrada_ Tipo de Cliente'!L19,'Entrada_ Tipo de Cliente'!L37,'Entrada_ Tipo de Cliente'!L39,'Entrada_ Tipo de Cliente'!L41,'Entrada_ Tipo de Cliente'!L43,'Entrada_ Tipo de Cliente'!L45)","v":0},{"$f":"SUM('Entrada_ Tipo de Cliente'!L7,'Entrada_ Tipo de Cliente'!L9,'Entrada_ Tipo de Cliente'!L21,'Entrada_ Tipo de Cliente'!L23,'Entrada_ Tipo de Cliente'!L25,'Entrada_ Tipo de Cliente'!L33,'Entrada_ Tipo de Cliente'!L35,'Entrada_ Tipo de Cliente'!L47,'Entrada_ Tipo de Cliente'!L49,'Entrada_ Tipo de Cliente'!L53)","v":0},{"$f":"C26/$B$26","v":{"$error":"#DIV/0!"}},{"$f":"E26/$B$26","v":{"$error":"#DIV/0!"}},{"$f":"E26/B26","v":{"$error":"#DIV/0!"}}]
[null,"SALIDA\nTOTAL DE MONTO TRANSACCIONADO","SALIDA \nRIESGO BAJO\nMonto Transaccionado","SALIDA \nRIESGO MEDIO\nMonto Transaccionado","SALIDA \nRIESGO ALTO\nMonto Transaccionado","SALIDA \nRIESGO BAJO\n% Monto ","SALIDA\n RIESGO MEDIO\n% Monto ","SALIDA \nRIESGO ALTO\n%Monto"]
[null,{"$f":"'Salida_ Tipo de Cliente '!N2","v":0},{"$f":"SUM('Salida_ Tipo de Cliente '!L3,'Salida_ Tipo de Cliente '!L5,'Salida_ Tipo de Cliente '!L27,'Salida_ Tipo de Cliente '!L29,'Salida_ Tipo de Cliente '!L31,'Salida_ Tipo de Cliente '!L51)","v":0},{"$f":"SUM('Salida_ Tipo de Cliente '!L11,'Salida_ Tipo de Cliente '!L13,'Salida_ Tipo de Cliente '!L15,'Salida_ Tipo de Cliente '!L17,'Salida_ Tipo de Cliente '!L19,'Salida_ Tipo de Cliente '!L37,'Salida_ Tipo de Cliente '!L39,'Salida_ Tipo de Cliente '!L41,'Salida_ Tipo de Cliente '!L43,'Salida_ Tipo de Cliente '!L45)","v":0},{"$f":"SUM('Salida_ Tipo de Cliente '!L7,'Salida_ Tipo de Cliente '!L9,'Salida_ Tipo de Cliente '!L21,'Salida_ Tipo de Cliente '!L23,'Salida_ Tipo de Cliente '!L25,'Salida_ Tipo de Cliente '!L33,'Salida_ Tipo de Cliente '!L35,'Salida_ Tipo de Cliente '!L47,'Salida_ Tipo de Cliente '!L49,'Salida_ Tipo de Cliente '!L53)","v":0},{"$f":"C28/$B$28","v":{"$error":"#DIV/0!"}},{"$f":"D28/$B$28","v":{"$error":"#DIV/0!"}},{"$f":"E28/B28","v":{"$error":"#DIV/0!"}}]
[]
[]
["5.- Evaluación  del Riesgo  de acuerdo al canal utilizado .","TOTAL DE CLIENTES","ENTRADA \nRIESGO BAJO\nClientes","ENTRADA\n RIESGO MEDIO\nClientes","ENTRADA \nRIESGO ALTO\nClientes","ENTRADA \nRIESGO BAJO\n% Clientes","ENTRADA \nRIESGO MEDIO\n% Clientes","ENTRADA\n RIESGO ALTO\n% Clientes"]
[null,0,0,0,0,{"$f":"C32/$B32","v":{"$error":"#DIV/0!"}},{"$f":"D32/$B32","v":{"$error":"#DIV/0!"}},{"$f":"E32/B32","v":{"$error":"#DIV/0!"}}]
[null,"TOTAL DE CLIENTES","SALIDA  \nRIESGO BAJO\nClientes","SALIDA \nRIESGO MEDIO\nClientes","SALIDA \nRIESGO ALTO\nClientes","SALIDA\n RIESGO BAJO\n% Clientes","SALIDA \nRIEGO MEDIO\n% Clientes","SALIDA \nRIESGO ALTO\n% Clientes"]
[null,0,0,0,0,{"$f":"C34/$B34","v":{"$error":"#DIV/0!"}},{"$f":"D34/$B34","v":{"$error":"#DIV/0!"}},{"$f":"E34/B34","v":{"$error":"#DIV/0!"}}]
[null,"TOTAL DE MONTO TRANSACCIONADO","ENTRADA\nRIESGO BAJO\nMonto Transaccionado","ENTRADA \nRIESGO MEDIO\nMonto Transaccionado","ENTRADA \nRIESGO ALTO\nMonto Transaccionado","ENTRADA\n RIESGO BAJO\n% Monto","ENTRADA\n RIESGO MEDIO\n% Monto ","ENTRADA\n RIESGO ALTO\n% Monto "]
[null,0,0,0,0,{"$f":"C36/$B36","v":{"$error":"#DIV/0!"}},{"$f":"D36/$B36","v":{"$error":"#DIV/0!"}},{"$f":"E36/$B36","v":{"$error":"#DIV/0!"}}]
[null,"TOTAL DE MONTO TRANSACCIONADO","SALIDA \nRIESGO BAJO\nMonto Transaccionado","SALIDA \nRIESGO MEDIO\nMonto Transaccionado","SALIDA \nRIESGO ALTO\nMonto Transaccionado","SALIDA \nRIESGO BAJO\n% Monto ","SALIDA\n RIESGO MEDIO\n% Monto ","SALIDA \nRIESGO ALTO\n%Monto"]
[null,0,0,0,0,{"$f":"C38/$B38","v":{"$error":"#DIV/0!"}},{"$f":"D38/$B38","v":{"$error":"#DIV/0!"}},{"$error":"#DIV/0!"}]
[]
[]
["6.- Riesgo de la Zona Geográfica","TOTAL DE CLIENTES","ENTRADA \nRIESGO BAJO\nClientes","ENTRADA\n RIESGO MEDIO\nClientes","ENTRADA \nRIESGO ALTO\nClientes","ENTRADA \n\"BLOQUEADO\"","ENTRADA \nRIESGO BAJO\n% Clientes","ENTRADA \nRIESGO MEDIO\n% Clientes","ENTRADA\n RIESGO ALTO\n% Clientes"]
[null,null,null,null,null,null,{"$f":"C42/$B42","v":{"$error":"#DIV/0!"}},{"$f":"D42/$B42","v":{"$error":"#DIV/0!"}},{"$f":"E42/$B42","v":{"$error":"#DIV/0!"}}]
[null,"TOTAL DE CLIENTES","SALIDA  \nRIESGO BAJO\nClientes","SALIDA \nRIESGO MEDIO\nClientes","SALIDA \nRIESGO ALTO\nClientes","SALIDA\n\"BLOQUEADO\"","SALIDA\n RIESGO BAJO\n% Clientes","SALIDA \nRIEGO MEDIO\n% Clientes","SALIDA \nRIESGO ALTO\n% Clientes"]
[null,null,null,null,null,null,{"$f":"C44/$B44","v":{"$error":"#DIV/0!"}},{"$f":"D44/$B44","v":{"$error":"#DIV/0!"}},{"$f":"E44/$B44","v":{"$error":"#DIV/0!"}}]
[null,"TOTAL DE MONTO TRANSACCIONADO","ENTRADA\nRIESGO BAJO\nMonto Transaccionado","ENTRADA \nRIESGO MEDIO\nMonto Transaccionado","ENTRADA \nRIESGO ALTO\nMonto Transaccionado","ENTRADA \n\"BLOQUEADO\"\nMonto Transaccionado","ENTRADA\n RIESGO BAJO\n% Monto","ENTRADA\n RIESGO MEDIO\n% Monto ","ENTRADA\n RIESGO ALTO\n% Monto "]
[null,null,null,null,null,null,{"$f":"C46/$B46","v":{"$error":"#DIV/0!"}},{"$f":"D46/$B46","v":{"$error":"#DIV/0!"}},{"$error":"#DIV/0!"}]
[null,"TOTAL DE MONTO TRANSACCIONADO","SALIDA \nRIESGO BAJO\nMonto Transaccionado","SALIDA \nRIESGO MEDIO\nMonto Transaccionado","SALIDA \nRIESGO ALTO\nMonto Transaccionado","SALIDA \n\"BLOQUEADO\"\nMonto Transaccionado","SALIDA \nRIESGO BAJO\n% Monto ","SALIDA\n RIESGO MEDIO\n% Monto ","SALIDA \nRIESGO ALTO\n%Monto"]
[null,null,null,null,null,null,{"$f":"C48/$B48","v":{"$error":"#DIV/0!"}},{"$f":"D48/$B48","v":{"$error":"#DIV/0!"}},{"$error":"#DIV/0!"}]
[]
[]
[]
["PAÍS"," NÚMERO DE OPERACIONES","Suma de MONTO TRANSACCIONADO","RIESGO",null,"PAÍS"," \nNÚMERO DE OPERACIONES","Suma de MONTO TRANSACCIONADO","RIESGO"]

{"sheet":"RESUMEN DE MATRIZ ","index":18,"n_rows":24,"n_cols":11,"rows_kept":24,"cut":false,"hidden":true,"merged":[[23,1,23,6],[1,0,1,1],[5,10,5,16],[7,10,7,16],[9,10,9,16],[2,10,3,16],[11,10,11,16]]}
[]
["ITEM",null,null,"CLIENTES",null,"TRANSACCIONALIDAD"]
[null,null,null,null,null,null,null,null,null,null,"SUJETO  OBLIGADO"]
[1,"Claridad en la información ( Entrada)",null,{"$f":"IF(MATRIZ!G2=\"CONGRUENTE\",\"BAJO\",\"ALTO\")","v":"BAJO"},null,{"$f":"IF(MATRIZ!G6=\"CONGRUENTE\",\"BAJO\",\"ALTO\")","v":"BAJO"}]
[2," Claridad en la información (Salida)",null,{"$f":"IF(MATRIZ!G4=\"CONGRUENTE\",\"BAJO\",\"ALTO\")","v":"BAJO"},null,{"$f":"IF(MATRIZ!G8=\"CONGRUENTE\",\"BAJO\",\"ALTO\")","v":"BAJO"}]
[3,"Evaluación de su clasificación de Riesgo (Entrada)",null,{"$f":"IF(MATRIZ!H12>=MATRIZ!G12,(IF(MATRIZ!H12>MATRIZ!F12,\"ALTO\",\"BAJO\")),(IF(MATRIZ!G12>=MATRIZ!F12,\"MEDIO\",\"BAJO\")))","v":{"$error":"#DIV/0!"}},null,{"$f":"IF(MATRIZ!H16>=MATRIZ!G16,(IF(MATRIZ!H16>MATRIZ!F16,\"ALTO\",\"BAJO\")),(IF(MATRIZ!G16>=MATRIZ!F16,\"MEDIO\",\"BAJO\")))","v":{"$error":"#DIV/0!"}},null,null,null,null,{"$f":"'Información General'!C4","v":0}]
[4,"Evaluación de su clasificación de Riesgo (Salida)",null,{"$f":"IF(MATRIZ!H14>=MATRIZ!G14,(IF(MATRIZ!H14>MATRIZ!F14,\"ALTO\",\"BAJO\")),(IF(MATRIZ!G14>=MATRIZ!F14,\"MEDIO\",\"BAJO\")))","v":{"$error":"#DIV/0!"}},null,{"$f":"IF(MATRIZ!H18>=MATRIZ!G18,(IF(MATRIZ!H18>MATRIZ!F18,\"ALTO\",\"BAJO\")),(IF(MATRIZ!G18>=MATRIZ!F18,\"MEDIO\",\"BAJO\")))","v":{"$error":"#DIV/0!"}}]
[5,"Riesgo respecto a la clasificación de clientes (Entrada)",null,{"$f":"IF(MATRIZ!H22>=MATRIZ!G22,(IF(MATRIZ!H22>MATRIZ!F22,\"ALTO\",\"BAJO\")),(IF(MATRIZ!G22>=MATRIZ!F22,\"MEDIO\",\"BAJO\")))","v":{"$error":"#DIV/0!"}},null,{"$f":"IF(MATRIZ!H26>=MATRIZ!G26,(IF(MATRIZ!H26>MATRIZ!F26,\"ALTO\",\"BAJO\")),(IF(MATRIZ!G26>=MATRIZ!F26,\"MEDIO\",\"BAJO\")))","v":{"$error":"#DIV/0!"}},null,null,null,null,{"$f":"'Información General'!C7","v":0}]
[6,"Riesgo respecto a la clasificación de clientes (Salida)",null,{"$f":"IF(MATRIZ!H24>=MATRIZ!G24,(IF(MATRIZ!H24>MATRIZ!F24,\"ALTO\",\"BAJO\")),(IF(MATRIZ!G24>=MATRIZ!F24,\"MEDIO\",\"BAJO\")))","v":{"$error":"#DIV/0!"}},null,{"$f":"IF(MATRIZ!H28>=MATRIZ!G28,(IF(MATRIZ!H28>MATRIZ!F28,\"ALTO\",\"BAJO\")),(IF(MATRIZ!G28>=MATRIZ!F28,\"MEDIO\",\"BAJO\")))","v":{"$error":"#DIV/0!"}}]
[7,"Riesgo de canales de fondos (Entrada)",null,{"$f":"IF(MATRIZ!H32>=MATRIZ!G32,(IF(MATRIZ!H32>MATRIZ!F32,\"ALTO\",\"BAJO\")),(IF(MATRIZ!G32>=MATRIZ!F32,\"MEDIO\",\"BAJO\")))","v":{"$error":"#DIV/0!"}},null,{"$f":"IF(MATRIZ!H36>=MATRIZ!G36,(IF(MATRIZ!H36>MATRIZ!F36,\"ALTO\",\"BAJO\")),(IF(MATRIZ!G36>=MATRIZ!F36,\"MEDIO\",\"BAJO\")))","v":{"$error":"#DIV/0!"}},null,null,null,null,{"$f":"'Información General'!C3","v":0}]
[8,"Riesgo de canales de fondos (Salida)",null,{"$f":"IF(MATRIZ!H34>=MATRIZ!G34,(IF(MATRIZ!H34>MATRIZ!F34,\"ALTO\",\"BAJO\")),(IF(MATRIZ!G34>=MATRIZ!F34,\"MEDIO\",\"BAJO\")))","v":{"$error":"#DIV/0!"}},null,{"$f":"IF(MATRIZ!H38>=MATRIZ!G38,(IF(MATRIZ!H38>MATRIZ!F38,\"ALTO\",\"BAJO\")),(IF(MATRIZ!G38>=MATRIZ!F38,\"MEDIO\",\"BAJO\")))","v":{"$error":"#DIV/0!"}}]
[9,"Riesgode la Zona Geografica (Entrada)",null,{"$f":"IF(MATRIZ!I42>=MATRIZ!H42,(IF(MATRIZ!I42>MATRIZ!G42,\"ALTO\",\"BAJO\")),(IF(MATRIZ!H42>=MATRIZ!G42,\"MEDIO\",\"BAJO\")))","v":{"$error":"#DIV/0!"}},null,{"$f":"IF(MATRIZ!I46>=MATRIZ!H46,(IF(MATRIZ!I46>MATRIZ!G46,\"ALTO\",\"BAJO\")),(IF(MATRIZ!H46>=MATRIZ!G46,\"MEDIO\",\"BAJO\")))","v":{"$error":"#DIV/0!"}},null,null,null,null,{"$f":"'Información General'!C8","v":0}]
[10,"Riesgo de la Zona Geografica (Salida)",null,{"$f":"IF(MATRIZ!I44>=MATRIZ!H44,(IF(MATRIZ!I44>MATRIZ!G44,\"ALTO\",\"BAJO\")),(IF(MATRIZ!H44>=MATRIZ!G44,\"MEDIO\",\"BAJO\")))","v":{"$error":"#DIV/0!"}},null,{"$f":"IF(MATRIZ!I48>=MATRIZ!H48,(IF(MATRIZ!I48>MATRIZ!G48,\"ALTO\",\"BAJO\")),(IF(MATRIZ!H48>=MATRIZ!G48,\"MEDIO\",\"BAJO\")))","v":{"$error":"#DIV/0!"}}]
[]
[]
[null,"FRECUENCIA DE RIESGO ALTO",null,{"$f":"COUNTIF($D4:$D13,\"ALTO\")","v":0},null,{"$f":"COUNTIF($F4:$F13,\"ALTO\")","v":0}]
[null,"FRECUENCIA DE RIESO MEDIO",null,{"$f":"COUNTIF($D5:$D14,\"MEDIO\")","v":0},null,{"$f":"COUNTIF($F5:$F14,\"MEDIO\")","v":0}]
[null,"FRECUENCIA DE RIESGO BAJO",null,{"$f":"COUNTIF($D6:$D15,\"BAJO\")","v":0},null,{"$f":"COUNTIF($F6:$F15,\"BAJO\")","v":0}]
[]
[null,null,null,"CLIENTES",null,"TRANSACCIONALIDAD"]
[]
[null,"RIESGO DEL SUJETO OBLIGADO",null,{"$f":"IF(D16>=D17,(IF(D16>=D18,\"ALTO\",\"BAJO\")),IF(D17>=D18,\"MEDIO\",\"BAJO\"))","v":"ALTO"},null,{"$f":"IF(F16>=F17,(IF(F16>=F18,\"ALTO\",\"BAJO\")),IF(F17>=F18,\"MEDIO\",\"BAJO\"))","v":"ALTO"}]
[]
[null,{"$f":"IF(MATRIZ!F46>0,\"SE RECOMIENDA SUPERVISIÓN INMEDIATA POR OPERARAR CON UN PAÍS BLOQUEADO\", (IF(MATRIZ!F48>0,\" SE RECOMIENDA SUPERVISIÓN INMEDIATA  POR OPERARAR CON UN PAÍS BLOQUEADO\",\"\")))","v":""}]

{"sheet":"Catalogo","index":19,"n_rows":241,"n_cols":10,"rows_kept":241,"cut":false,"hidden":true,"merged":[]}
["Tipo de personas",null,null,"Zonas Geograficas",null,null,null,"ISO 3166-1\nnumérico","Nombre del país","PTOS POR RIESGO"]
["Persona Natural Nacional",null,null,"Bocas del Toro",null,null,null,4,"Afganistán","A"]
["Persona Natural Extranjera",null,null,"Chiriqui",null,null,null,8,"Albania","B"]
["Persona Natural Nacional\nPersona Expuesta Políticamente",null,null,"Cocle",null,null,null,276,"Alemania","B"]
["Persona Natural Extranjera\nPersona Expuesta Políticamente",null,null,"Colón",null,null,null,20,"Andorra","M"]
["Persona Natural \n(Casinos)",null,null,"Darien",null,null,null,24,"Angola","M"]
["Persona Natural \n(Agentes  Inmobiliarios)",null,null,"Embera-Woonan",null,null,null,660,"Anguila","M"]
["Persona Natural \n(Comerciantes de metales y/o Piedras  preciosas",null,null,"Herrera",null,null,null,10,"Antártida","B"]
[" Persona Natural\n(Abogados / Notarios, Otros profesionales jurídicos independientes y contadores)",null,null,"Los Santos",null,null,null,28,"Antigua y Barbuda","M"]
[" Persona Natural\n(Otros proveedores de servicios societarios y fideicomisos)",null,null,"Ngobe Bugle",null,null,null,530,"Antillas Neerlandesas","B"]
[" Persona Natural\n(Organizaciones sin fines de lucro)",null,null,"Panamá",null,null,null,682,"Arabia Saudita","B"]
[" Persona Natural\n(Clasificación diferente  a las anteriores)",null,null,"Panamá Oeste",null,null,null,12,"Argelia","B"]
["Persona Jurídica Nacional",null,null,"San Blas",null,null,null,32,"Argentina","M"]
["Persona Jurídica Extranjera",null,null,"Veraguas",null,null,null,51,"Armenia","B"]
["Persona Jurídica Nacional\nPersona Expuesta Políticamente",null,null,"Zonas Francas",null,null,null,533,"Aruba","M"]
["Persona Jurídica Extranjera\nPersona Expuesta Políticamente",null,null,"Zonas Fronterizas",null,null,null,36,"Australia","B"]
["Persona Jurídica \n(Casinos)",null,null,"Zona Portuaria",null,null,null,40,"Austria","B"]
["Persona Jurídica \n(Agentes  Inmobiliarios)",null,null,"Zona Aeroportuaria",null,null,null,31,"Azerbaiyán","B"]
[" Persona Jurídica \n(Comerciantes de metales y/o Piedras  preciosas",null,null,null,null,null,null,44,"Bahamas","A"]
[" Persona Jurídica \n(Abogados / Notarios, Otros profesionales jurídicos independientes y contadores)",null,null,null,null,null,null,48,"Bahréin","B"]
["Número  Total de  Envíos realizados por : \n Persona Jurídica \n(Otros proveedores de servicios societarios y fideicomisos)",null,null,null,null,null,null,50,"Bangladesh","B"]
[" Persona Jurídica \n(Organizaciones sin fines de lucro)",null,null,null,null,null,null,52,"Barbados","B"]
["Persona Jurídica \n(Clasificación diferente a las anteriores)",null,null,null,null,null,null,112,"Belarús","B"]
[null,null,null,null,null,null,null,56,"Bélgica","B"]
[null,null,null,null,null,null,null,84,"Belice","M"]
[null,null,null,null,null,null,null,204,"Benin","M"]
[null,null,null,null,null,null,null,60,"Bermudas","M"]
[null,null,null,null,null,null,null,64,"Bhután","B"]
[null,null,null,null,null,null,null,68,"Bolivia","B"]
[null,null,null,null,null,null,null,70,"Bosnia y Herzegovina","B"]
[null,null,null,null,null,null,null,72,"Botsuana","A"]
[null,null,null,null,null,null,null,76,"Brasil","B"]
[null,null,null,null,null,null,null,96,"Brunéi","B"]
[null,null,null,null,null,null,null,100,"Bulgaria","B"]
[null,null,null,null,null,null,null,854,"Burkina Faso","B"]
[null,null,null,null,null,null,null,108,"Burundi","M"]
[null,null,null,null,null,null,null,132,"Cabo Verde","M"]
[null,null,null,null,null,null,null,116,"Camboya","A"]
[null,null,null,null,null,null,null,120,"Camerún","M"]
[null,null,null,null,null,null,null,124,"Canadá","B"]
[null,null,null,null,null,null,null,148,"Chad","M"]
[null,null,null,null,null,null,null,152,"Chile","B"]
[null,null,null,null,null,null,null,156,"China","B"]
[null,null,null,null,null,null,null,196,"Chipre","B"]
[null,null,null,null,null,null,null,336,"Ciudad del Vaticano","M"]
[null,null,null,null,null,null,null,170,"Colombia","B"]
[null,null,null,null,null,null,null,174,"Comoros","B"]
[null,null,null,null,null,null,null,178,"Congo","M"]
[null,null,null,null,null,null,null,408,"Corea del Norte","BLOQUEADO"]
[null,null,null,null,null,null,null,410,"Corea del Sur","B"]
[null,null,null,null,null,null,null,384,"Costa de Marfil","M"]
[null,null,null,null,null,null,null,188,"Costa Rica","B"]
[null,null,null,null,null,null,null,191,"Croacia","B"]
[null,null,null,null,null,null,null,192,"Cuba","B"]
[null,null,null,null,null,null,null,208,"Dinamarca","B"]
[null,null,null,null,null,null,null,212,"Domínica","B"]
[null,null,null,null,null,null,null,218,"Ecuador","B"]
[null,null,null,null,null,null,null,818,"Egipto","B"]
[null,null,null,null,null,null,null,222,"El Salvador","B"]
[null,null,null,null,null,null,null,784,"Emiratos Árabes Unidos","B"]
[null,null,null,null,null,null,null,232,"Eritrea","M"]
[null,null,null,null,null,null,null,703,"Eslovaquia","B"]
[null,null,null,null,null,null,null,705,"Eslovenia","B"]
[null,null,null,null,null,null,null,724,"España","B"]
[null,null,null,null,null,null,null,840,"Estados Unidos de América","B"]
[null,null,null,null,null,null,null,233,"Estonia","B"]
[null,null,null,null,null,null,null,231,"Etiopía","A"]
[null,null,null,null,null,null,null,242,"Fiji","B"]
[null,null,null,null,null,null,null,608,"Filipinas","B"]
[null,null,null,null,null,null,null,246,"Finlandia","B"]
[null,null,null,null,null,null,null,250,"Francia","B"]
[null,null,null,null,null,null,null,266,"Gabón","B"]
[null,null,null,null,null,null,null,270,"Gambia","B"]
[null,null,null,null,null,null,null,268,"Georgia","B"]
[null,null,null,null,null,null,null,239,"Georgia del Sur e Islas Sandwich del Sur","B"]
[null,null,null,null,null,null,null,288,"Ghana","A"]
[null,null,null,null,null,null,null,292,"Gibraltar","A"]
[null,null,null,null,null,null,null,308,"Granada","B"]
[null,null,null,null,null,null,null,300,"Grecia","B"]
[null,null,null,null,null,null,null,304,"Groenlandia","A"]
[null,null,null,null,null,null,null,312,"Guadalupe","B"]
[null,null,null,null,null,null,null,316,"Guam","B"]
[null,null,null,null,null,null,null,320,"Guatemala","B"]
[null,null,null,null,null,null,null,328,"Guayana","B"]
[null,null,null,null,null,null,null,254,"Guayana Francesa","B"]
[null,null,null,null,null,null,null,831,"Guernsey","A"]
[null,null,null,null,null,null,null,324,"Guinea","A"]
[null,null,null,null,null,null,null,226,"Guinea Ecuatorial","A"]
[null,null,null,null,null,null,null,624,"Guinea-Bissau","A"]
[null,null,null,null,null,null,null,332,"Haití","M"]
[null,null,null,null,null,null,null,340,"Honduras","B"]
[null,null,null,null,null,null,null,344,"Hong Kong","B"]
[null,null,null,null,null,null,null,348,"Hungría","B"]
[null,null,null,null,null,null,null,356,"India","B"]
[null,null,null,null,null,null,null,360,"Indonesia","B"]
[null,null,null,null,null,null,null,368,"Irak","A"]
[null,null,null,null,null,null,null,364,"Irán","BLOQUEADO"]
[null,null,null,null,null,null,null,372,"Irlanda","B"]
[null,null,null,null,null,null,null,74,"Isla Bouvet","B"]
[null,null,null,null,null,null,null,833,"Isla de Man","B"]
[null,null,null,null,null,null,null,352,"Islandia","B"]
[null,null,null,null,null,null,null,248,"Islas Áland","B"]
[null,null,null,null,null,null,null,136,"Islas Caimán","M"]
[null,null,null,null,null,null,null,162,"Islas Christmas","B"]
[null,null,null,null,null,null,null,166,"Islas Cocos","B"]
[null,null,null,null,null,null,null,184,"Islas Cook","B"]
[null,null,null,null,null,null,null,234,"Islas Faroe","B"]
[null,null,null,null,null,null,null,334,"Islas Heard y McDonald","B"]
[null,null,null,null,null,null,null,238,"Islas Malvinas","B"]
[null,null,null,null,null,null,null,584,"Islas Marshall","B"]
[null,null,null,null,null,null,null,574,"Islas Norkfolk","B"]
[null,null,null,null,null,null,null,585,"Islas Palaos","B"]
[null,null,null,null,null,null,null,612,"Islas Pitcairn","B"]
[null,null,null,null,null,null,null,90,"Islas Solomón","M"]
[null,null,null,null,null,null,null,744,"Islas Svalbard y Jan Mayen","B"]
[null,null,null,null,null,null,null,796,"Islas Turcas y Caicos","B"]
[null,null,null,null,null,null,null,92,"Islas Vírgenes Británicas","B"]
[null,null,null,null,null,null,null,850,"Islas Vírgenes de los Estados Unidos de América","B"]
[null,null,null,null,null,null,null,376,"Israel","B"]
[null,null,null,null,null,null,null,380,"Italia","B"]
[null,null,null,null,null,null,null,388,"Jamaica","M"]
[null,null,null,null,null,null,null,392,"Japón","B"]
[null,null,null,null,null,null,null,832,"Jersey","B"]
[null,null,null,null,null,null,null,400,"Jordania","B"]
[null,null,null,null,null,null,null,398,"Kazajstán","B"]
[null,null,null,null,null,null,null,404,"Kenia","M"]
[null,null,null,null,null,null,null,417,"Kirguistán","B"]
[null,null,null,null,null,null,null,296,"Kiribati","M"]
[null,null,null,null,null,null,null,414,"Kuwait","B"]
[null,null,null,null,null,null,null,418,"Laos","A"]
[null,null,null,null,null,null,null,426,"Lesotho","B"]
[null,null,null,null,null,null,null,428,"Letonia","B"]
[null,null,null,null,null,null,null,422,"Líbano","B"]
[null,null,null,null,null,null,null,430,"Liberia","M"]
[null,null,null,null,null,null,null,434,"Libia","M"]
[null,null,null,null,null,null,null,438,"Liechtenstein","B"]
[null,null,null,null,null,null,null,440,"Lituania","B"]
[null,null,null,null,null,null,null,442,"Luxemburgo","B"]
[null,null,null,null,null,null,null,446,"Macao","B"]
[null,null,null,null,null,null,null,807,"Macedonia","B"]
[null,null,null,null,null,null,null,450,"Madagascar","M"]
[null,null,null,null,null,null,null,458,"Malasia","B"]
[null,null,null,null,null,null,null,454,"Malawi","B"]
[null,null,null,null,null,null,null,462,"Maldivas","B"]
[null,null,null,null,null,null,null,466,"Mali","B"]
[null,null,null,null,null,null,null,470,"Malta","B"]
[null,null,null,null,null,null,null,504,"Marruecos","B"]
[null,null,null,null,null,null,null,474,"Martinica","B"]
[null,null,null,null,null,null,null,480,"Mauricio","M"]
[null,null,null,null,null,null,null,478,"Mauritania","M"]
[null,null,null,null,null,null,null,175,"Mayotte","B"]
[null,null,null,null,null,null,null,484,"México","B"]
[null,null,null,null,null,null,null,583,"Micronesia","M"]
[null,null,null,null,null,null,null,498,"Moldova","B"]
[null,null,null,null,null,null,null,492,"Mónaco","B"]
[null,null,null,null,null,null,null,496,"Mongolia","M"]
[null,null,null,null,null,null,null,499,"Montenegro","B"]
[null,null,null,null,null,null,null,500,"Montserrat","M"]
[null,null,null,null,null,null,null,508,"Mozambique","A"]
[null,null,null,null,null,null,null,104,"Myanmar","M"]
[null,null,null,null,null,null,null,516,"Namibia","B"]
[null,null,null,null,null,null,null,520,"Nauru","M"]
[null,null,null,null,null,null,null,524,"Nepal","B"]
[null,null,null,null,null,null,null,558,"Nicaragua","M"]
[null,null,null,null,null,null,null,562,"Níger","B"]
[null,null,null,null,null,null,null,566,"Nigeria","M"]
[null,null,null,null,null,null,null,570,"Niue","B"]
[null,null,null,null,null,null,null,578,"Noruega","B"]
[null,null,null,null,null,null,null,540,"Nueva Caledonia","M"]
[null,null,null,null,null,null,null,554,"Nueva Zelanda","B"]
[null,null,null,null,null,null,null,512,"Omán","B"]
[null,null,null,null,null,null,null,528,"Países Bajos","B"]
[null,null,null,null,null,null,null,586,"Pakistán","A"]
[null,null,null,null,null,null,null,275,"Palestina","A"]
[null,null,null,null,null,null,null,591,"Panamá","B"]
[null,null,null,null,null,null,null,598,"Papúa Nueva Guinea","B"]
[null,null,null,null,null,null,null,600,"Paraguay","M"]
[null,null,null,null,null,null,null,604,"Perú","B"]
[null,null,null,null,null,null,null,258,"Polinesia Francesa","M"]
[null,null,null,null,null,null,null,616,"Polonia","B"]
[null,null,null,null,null,null,null,620,"Portugal","B"]
[null,null,null,null,null,null,null,630,"Puerto Rico","B"]
[null,null,null,null,null,null,null,634,"Qatar","B"]
[null,null,null,null,null,null,null,826,"Reino Unido","B"]
[null,null,null,null,null,null,null,140,"República Centro-Africana","M"]
[null,null,null,null,null,null,null,203,"República Checa","B"]
[null,null,null,null,null,null,null,214,"República Dominicana","B"]
[null,null,null,null,null,null,null,638,"Reunión","B"]
[null,null,null,null,null,null,null,646,"Ruanda","A"]
[null,null,null,null,null,null,null,642,"Rumanía","B"]
[null,null,null,null,null,null,null,643,"Rusia","B"]
[null,null,null,null,null,null,null,732,"Sahara Occidental","B"]
[null,null,null,null,null,null,null,882,"Samoa","M"]
[null,null,null,null,null,null,null,16,"Samoa Americana","B"]
[null,null,null,null,null,null,null,652,"San Bartolomé","B"]
[null,null,null,null,null,null,null,659,"San Cristóbal y Nieves","M"]
[null,null,null,null,null,null,null,674,"San Marino","M"]
[null,null,null,null,null,null,null,666,"San Pedro y Miquelón","B"]
[null,null,null,null,null,null,null,670,"San Vicente y las Granadinas","B"]
[null,null,null,null,null,null,null,654,"Santa Elena","B"]
[null,null,null,null,null,null,null,662,"Santa Lucía","B"]
[null,null,null,null,null,null,null,678,"Santo Tomé y Príncipe","B"]
[null,null,null,null,null,null,null,686,"Senegal","B"]
[null,null,null,null,null,null,null,688,"Serbia y Montenegro","A"]
[null,null,null,null,null,null,null,690,"Seychelles","B"]
[null,null,null,null,null,null,null,694,"Sierra Leona","M"]
[null,null,null,null,null,null,null,702,"Singapur","B"]
[null,null,null,null,null,null,null,760,"Siria","A"]
[null,null,null,null,null,null,null,706,"Somalia","A"]
[null,null,null,null,null,null,null,144,"Sri Lanka","A"]
[null,null,null,null,null,null,null,748,"Suazilandia","B"]
[null,null,null,null,null,null,null,710,"Sudáfrica","B"]
[null,null,null,null,null,null,null,736,"Sudán","A"]
[null,null,null,null,null,null,null,752,"Suecia","B"]
[null,null,null,null,null,null,null,756,"Suiza","B"]
[null,null,null,null,null,null,null,740,"Surinam","B"]
[null,null,null,null,null,null,null,764,"Tailandia","B"]
[null,null,null,null,null,null,null,158,"Taiwán","B"]
[null,null,null,null,null,null,null,834,"Tanzania","M"]
[null,null,null,null,null,null,null,762,"Tayikistán","A"]
[null,null,null,null,null,null,null,86,"Territorio Británico del Océano Índico","B"]
[null,null,null,null,null,null,null,260,"Territorios Australes Franceses","B"]
[null,null,null,null,null,null,null,626,"Timor-Leste","B"]
[null,null,null,null,null,null,null,768,"Togo","B"]
[null,null,null,null,null,null,null,772,"Tokelau","B"]
[null,null,null,null,null,null,null,776,"Tonga","A"]
[null,null,null,null,null,null,null,780,"Trinidad y Tobago","A"]
[null,null,null,null,null,null,null,788,"Túnez","A"]
[null,null,null,null,null,null,null,795,"Turkmenistán","M"]
[null,null,null,null,null,null,null,792,"Turquía","M"]
[null,null,null,null,null,null,null,798,"Tuvalu","A"]
[null,null,null,null,null,null,null,804,"Ucrania","B"]
[null,null,null,null,null,null,null,800,"Uganda","M"]
[null,null,null,null,null,null,null,858,"Uruguay","B"]
[null,null,null,null,null,null,null,860,"Uzbekistán","B"]
[null,null,null,null,null,null,null,548,"Vanuatu","M"]
[null,null,null,null,null,null,null,862,"Venezuela","M"]
[null,null,null,null,null,null,null,704,"Vietnam","M"]
[null,null,null,null,null,null,null,876,"Wallis y Futuna","B"]
[null,null,null,null,null,null,null,887,"Yemen","A"]
[null,null,null,null,null,null,null,262,"Yibuti","B"]

{"sheet":"Hoja1","index":20,"n_rows":241,"n_cols":5,"rows_kept":241,"cut":false,"hidden":true,"merged":[]}
["Nombre del país","ISO 3166-1\nalfa-3","ISO 3166-1\nalfa-2","ISO 3166-1\nnumérico","PTOS POR RIESGO"]
["Afganistán","AFG","AF",4,"A"]
["Albania","ALB","AL",8,"B"]
["Alemania","DEU","DE",276,"B"]
["Andorra","AND","AD",20,"M"]
["Angola","AGO","AO",24,"M"]
["Anguila","AIA","AI",660,"M"]
["Antártida","ATA","AQ",10,"B"]
["Antigua y Barbuda","ATG","AG",28,"M"]
["Antillas Neerlandesas","ANT","AN",530,"B"]
["Arabia Saudita","SAU","SA",682,"B"]
["Argelia","DZA","DZ",12,"B"]
["Argentina","ARG","AR",32,"M"]
["Armenia","ARM","AM",51,"B"]
["Aruba","ABW","AW",533,"M"]
["Australia","AUS","AU",36,"B"]
["Austria","AUT","AT",40,"B"]
["Azerbaiyán","AZE","AZ",31,"B"]
["Bahamas","BHS","BS",44,"A"]
["Bahréin","BHR","BH",48,"B"]
["Bangladesh","BGD","BD",50,"B"]
["Barbados","BRB","BB",52,"B"]
["Belarús","BLR","BY",112,"B"]
["Bélgica","BEL","BE",56,"B"]
["Belice","BLZ","BZ",84,"M"]
["Benin","BEN","BJ",204,"M"]
["Bermudas","BMU","BM",60,"M"]
["Bhután","BTN","BT",64,"B"]
["Bolivia","BOL","BO",68,"B"]
["Bosnia y Herzegovina","BIH","BA",70,"B"]
["Botsuana","BWA","BW",72,"A"]
["Brasil","BRA","BR",76,"B"]
["Brunéi","BRN","BN",96,"B"]
["Bulgaria","BGR","BG",100,"B"]
["Burkina Faso","BFA","BF",854,"B"]
["Burundi","BDI","BI",108,"M"]
["Cabo Verde","CPV","CV",132,"M"]
["Camboya","KHM","KH",116,"A"]
["Camerún","CMR","CM",120,"M"]
["Canadá","CAN","CA",124,"B"]
["Chad","TCD","TD",148,"M"]
["Chile","CHL","CL",152,"B"]
["China","CHN","CN",156,"B"]
["Chipre","CYP","CY",196,"B"]
["Ciudad del Vaticano","VAT","VA",336,"M"]
["Colombia","COL","CO",170,"B"]
["Comoros","COM","KM",174,"B"]
["Congo","COG","CG",178,"M"]
["Corea del Norte","PRK","KP",408,"BLOQUEADO"]
["Corea del Sur","KOR","KR",410,"B"]
["Costa de Marfil","CIV","CI",384,"M"]
["Costa Rica","CRI","CR",188,"B"]
["Croacia","HRV","HR",191,"B"]
["Cuba","CUB","CU",192,"B"]
["Dinamarca","DNK","DK",208,"B"]
["Domínica","DMA","DM",212,"B"]
["Ecuador","ECU","EC",218,"B"]
["Egipto","EGY","EG",818,"B"]
["El Salvador","SLV","SV",222,"B"]
["Emiratos Árabes Unidos","ARE","AE",784,"B"]
["Eritrea","ERI","ER",232,"M"]
["Eslovaquia","SVK","SK",703,"B"]
["Eslovenia","SVN","SI",705,"B"]
["España","ESP","ES",724,"B"]
["Estados Unidos de América","USA","US",840,"B"]
["Estonia","EST","EE",233,"B"]
["Etiopía","ETH","ET",231,"A"]
["Fiji","FJI","FJ",242,"B"]
["Filipinas","PHL","PH",608,"B"]
["Finlandia","FIN","FI",246,"B"]
["Francia","FRA","FR",250,"B"]
["Gabón","GAB","GA",266,"B"]
["Gambia","GMB","GM",270,"B"]
["Georgia","GEO","GE",268,"B"]
["Georgia del Sur e Islas Sandwich del Sur","SGS","GS",239,"B"]
["Ghana","GHA","GH",288,"A"]
["Gibraltar","GIB","GI",292,"A"]
["Granada","GRD","GD",308,"B"]
["Grecia","GRC","GR",300,"B"]
["Groenlandia","GRL","GL",304,"A"]
["Guadalupe","GLP","GP",312,"B"]
["Guam","GUM","GU",316,"B"]
["Guatemala","GTM","GT",320,"B"]
["Guayana","GUY","GY",328,"B"]
["Guayana Francesa","GUF","GF",254,"B"]
["Guernsey","GGY","GG",831,"A"]
["Guinea","GIN","GN",324,"A"]
["Guinea Ecuatorial","GNQ","GQ",226,"A"]
["Guinea-Bissau","GNB","GW",624,"A"]
["Haití","HTI","HT",332,"M"]
["Honduras","HND","HN",340,"B"]
["Hong Kong","HKG","HK",344,"B"]
["Hungría","HUN","HU",348,"B"]
["India","IND","IN",356,"B"]
["Indonesia","IDN","ID",360,"B"]
["Irak","IRQ","IQ",368,"A"]
["Irán","IRN","IR",364,"BLOQUEADO"]
["Irlanda","IRL","IE",372,"B"]
["Isla Bouvet","BVT","BV",74,"B"]
["Isla de Man","IMN","IM",833,"B"]
["Islandia","ISL","IS",352,"B"]
["Islas Áland","ALA","AX",248,"B"]
["Islas Caimán","CYM","KY",136,"M"]
["Islas Christmas","CXR","CX",162,"B"]
["Islas Cocos","CCK","CC",166,"B"]
["Islas Cook","COK","CK",184,"B"]
["Islas Faroe","FRO","FO",234,"B"]
["Islas Heard y McDonald","HMD","HM",334,"B"]
["Islas Malvinas","KLK","FK",238,"B"]
["Islas Marshall","MHL","MH",584,"B"]
["Islas Norkfolk","NFK","NF",574,"B"]
["Islas Palaos","PLW","PW",585,"B"]
["Islas Pitcairn","PCN","PN",612,"B"]
["Islas Solomón","SLB","SB",90,"M"]
["Islas Svalbard y Jan Mayen","SJM","SJ",744,"B"]
["Islas Turcas y Caicos","TCA","TC",796,"B"]
["Islas Vírgenes Británicas","VGB","VG",92,"B"]
["Islas Vírgenes de los Estados Unidos de América","VIR","VI",850,"B"]
["Israel","ISR","IL",376,"B"]
["Italia","ITA","IT",380,"B"]
["Jamaica","JAM","JM",388,"M"]
["Japón","JPN","JP",392,"B"]
["Jersey","JEY","JE",832,"B"]
["Jordania","JOR","JO",400,"B"]
["Kazajstán","KAZ","KZ",398,"B"]
["Kenia","KEN","KE",404,"M"]
["Kirguistán","KGZ","KG",417,"B"]
["Kiribati","KIR","KI",296,"M"]
["Kuwait","KWT","KW",414,"B"]
["Laos","LAO","LA",418,"A"]
["Lesotho","LSO","LS",426,"B"]
["Letonia","LVA","LV",428,"B"]
["Líbano","LBN","LB",422,"B"]
["Liberia","LBR","LR",430,"M"]
["Libia","LBY","LY",434,"M"]
["Liechtenstein","LIE","LI",438,"B"]
["Lituania","LTU","LT",440,"B"]
["Luxemburgo","LUX","LU",442,"B"]
["Macao","MAC","MO",446,"B"]
["Macedonia","MKD","MK",807,"B"]
["Madagascar","MDG","MG",450,"M"]
["Malasia","MYS","MY",458,"B"]
["Malawi","MWI","MW",454,"B"]
["Maldivas","MDV","MV",462,"B"]
["Mali","MLI","ML",466,"B"]
["Malta","MLT","MT",470,"B"]
["Marruecos","MAR","MA",504,"B"]
["Martinica","MTQ","MQ",474,"B"]
["Mauricio","MUS","MU",480,"M"]
["Mauritania","MRT","MR",478,"M"]
["Mayotte","MYT","YT",175,"B"]
["México","MEX","MX",484,"B"]
["Micronesia","FSM","FM",583,"M"]
["Moldova","MDA","MD",498,"B"]
["Mónaco","MCO","MC",492,"B"]
["Mongolia","MNG","MN",496,"M"]
["Montenegro","MNE","ME",499,"B"]
["Montserrat","MSR","MS",500,"M"]
["Mozambique","MOZ","MZ",508,"A"]
["Myanmar","MMR","MM",104,"M"]
["Namibia","NAM","NA",516,"B"]
["Nauru","NRU","NR",520,"M"]
["Nepal","NPL","NP",524,"B"]
["Nicaragua","NIC","NI",558,"M"]
["Níger","NER","NE",562,"B"]
["Nigeria","NGA","NG",566,"M"]
["Niue","NIU","NU",570,"B"]
["Noruega","NOR","NO",578,"B"]
["Nueva Caledonia","NCL","NC",540,"M"]
["Nueva Zelanda","NZL","NZ",554,"B"]
["Omán","OMN","OM",512,"B"]
["Países Bajos","NLD","NL",528,"B"]
["Pakistán","PAK","PK",586,"A"]
["Palestina","PSE","PS",275,"A"]
["Panamá","PAN","PA",591,"B"]
["Papúa Nueva Guinea","PNG","PG",598,"B"]
["Paraguay","PRY","PY",600,"M"]
["Perú","PER","PE",604,"B"]
["Polinesia Francesa","PYF","PF",258,"M"]
["Polonia","POL","PL",616,"B"]
["Portugal","PRT","PT",620,"B"]
["Puerto Rico","PRI","PR",630,"B"]
["Qatar","QAT","QA",634,"B"]
["Reino Unido","GBR","GB",826,"B"]
["República Centro-Africana","CAF","CF",140,"M"]
["República Checa","CZE","CZ",203,"B"]
["República Dominicana","DOM","DO",214,"B"]
["Reunión","REU","RE",638,"B"]
["Ruanda","RWA","RW",646,"A"]
["Rumanía","ROU","RO",642,"B"]
["Rusia","RUS","RU",643,"B"]
["Sahara Occidental","ESH","EH",732,"B"]
["Samoa","WSM","WS",882,"M"]
["Samoa Americana","ASM","AS",16,"B"]
["San Bartolomé","BLM","BL",652,"B"]
["San Cristóbal y Nieves","KNA","KN",659,"M"]
["San Marino","SMR","SM",674,"M"]
["San Pedro y Miquelón","SPM","PM",666,"B"]
["San Vicente y las Granadinas","VCT","VC",670,"B"]
["Santa Elena","SHN","SH",654,"B"]
["Santa Lucía","LCA","LC",662,"B"]
["Santo Tomé y Príncipe","STP","ST",678,"B"]
["Senegal","SEN","SN",686,"B"]
["Serbia y Montenegro","SRB","RS",688,"A"]
["Seychelles","SYC","SC",690,"B"]
["Sierra Leona","SLE","SL",694,"M"]
["Singapur","SGP","SG",702,"B"]
["Siria","SYR","SY",760,"A"]
["Somalia","SOM","SO",706,"A"]
["Sri Lanka","LKA","LK",144,"A"]
["Suazilandia","SWZ","SZ",748,"B"]
["Sudáfrica","ZAF","ZA",710,"B"]
["Sudán","SDN","SD",736,"A"]
["Suecia","SWE","SE",752,"B"]
["Suiza","CHE","CH",756,"B"]
["Surinam","SUR","SR",740,"B"]
["Tailandia","THA","TH",764,"B"]
["Taiwán","TWN","TW",158,"B"]
["Tanzania","TZA","TH",834,"M"]
["Tayikistán","TJK","TJ",762,"A"]
["Territorio Británico del Océano Índico","IOT","IO",86,"B"]
["Territorios Australes Franceses","ATF","TF",260,"B"]
["Timor-Leste","TLS","TL",626,"B"]
["Togo","TGO","TG",768,"B"]
["Tokelau","TKL","TK",772,"B"]
["Tonga","TON","TO",776,"A"]
["Trinidad y Tobago","TTO","TT",780,"A"]
["Túnez","TUN","TN",788,"A"]
["Turkmenistán","TKM","TM",795,"M"]
["Turquía","TUR","TR",792,"M"]
["Tuvalu","TUV","TV",798,"A"]
["Ucrania","UKR","UA",804,"B"]
["Uganda","UGA","UG",800,"M"]
["Uruguay","URY","UY",858,"B"]
["Uzbekistán","UZB","UZ",860,"B"]
["Vanuatu","VUT","VU",548,"M"]
["Venezuela","VEN","VE",862,"M"]
["Vietnam","VNM","VN",704,"M"]
["Wallis y Futuna","WLF","WF",876,"B"]
["Yemen","YEM","YE",887,"A"]
["Yibuti","DJI","DJ",262,"B"]